Body Name,Body,Service Level,Expense Type,Expense Code,Narrative,Date,Transaction Number,Amount,Capital and Revenue,Supplier Name,Supplier ID
South Ribble Council,http://statistics.data.gov.uk/doc/local-authority/30UN,Area 2 - Waste Transport/Eastern & Central Teams,Materials General,4040,1 airbag VU11 HSZ JFC13865,10/01/2020,0000451916,395.45,Revenue,AA UK CV t/a Hydrair Truck & Trailer,132664
South Ribble Council,http://statistics.data.gov.uk/doc/local-authority/30UN,Area 2 - Waste Transport/Eastern & Central Teams,Materials General,4040,2 air bags VU11 HSZ JFC13867,10/01/2020,0000451979,282.06,Revenue,AA UK CV t/a Hydrair Truck & Trailer,132664
South Ribble Council,http://statistics.data.gov.uk/doc/local-authority/30UN,Area 2 - Waste Transport/Eastern & Central Teams,Materials General,4040,"1x valve, PJ62 UCG, JFC13873 (NAME REDACTED)",10/01/2020,0000452054,296.40,Revenue,AA UK CV t/a Hydrair Truck & Trailer,132664
South Ribble Council,http://statistics.data.gov.uk/doc/local-authority/30UN,Area 2 - Waste Transport/Eastern & Central Teams,Materials General,4040,CALIPER PJ62UCL JFC 13999,31/01/2020,0000452539,348.00,Revenue,AA UK CV t/a Hydrair Truck & Trailer,132664
South Ribble Council,http://statistics.data.gov.uk/doc/local-authority/30UN,Housing,Cap Grant- Improve Grants,C570,"DFG WORKS TO BATHROOM AT ADDRESS REDACTED AS PER QUOTE SUPPIED FOR SRBC PLANS- CUST CONTRIBUTION OF 566.44
",24/01/2020,0000452450,"10,833.56",Revenue,ABBI PROPERTY SERVICES LTD,131357
South Ribble Council,http://statistics.data.gov.uk/doc/local-authority/30UN,Area 1 - Penwortham Western Parishes,Materials General,4040,4 CAMERA 2TB HYBRID NVR RECORDER,24/01/2020,0000452158,769.00,Revenue,ADT FIRE & SECURITY PLC,131052
South Ribble Council,http://statistics.data.gov.uk/doc/local-authority/30UN,Area 2 - Waste Transport/Eastern & Central Teams,Materials General,4040,OFF SIDE BRUSH ARM - AE14AYG - JFC13918,22/01/2020,0000452186,349.87,Revenue,AEBI SCHMIDT UK LTD,00085672
South Ribble Council,http://statistics.data.gov.uk/doc/local-authority/30UN,Area 2 - Waste Transport/Eastern & Central Teams,Materials General,4040,PROTECTION PLATE - BIN502 - JFC13918,22/01/2020,0000452186,82.78,Revenue,AEBI SCHMIDT UK LTD,00085672
South Ribble Council,http://statistics.data.gov.uk/doc/local-authority/30UN,Area 2 - Waste Transport/Eastern & Central Teams,Materials General,4040,FREIGHT,22/01/2020,0000452186,15.00,Revenue,AEBI SCHMIDT UK LTD,00085672
South Ribble Council,http://statistics.data.gov.uk/doc/local-authority/30UN,Area 2 - Waste Transport/Eastern & Central Teams,External Contractors Charges,4570,"Spec Repair, AE14 AYF, JFC13864. (NAME REDACTED)",31/01/2020,0000452513,554.54,Revenue,AEBI SCHMIDT UK LTD,00085672
South Ribble Council,http://statistics.data.gov.uk/doc/local-authority/30UN,Revenues Plus,Financial,4811,,08/01/2020,0000451995,810.89,Revenue,ALLPAY LTD,00122276
South Ribble Council,http://statistics.data.gov.uk/doc/local-authority/30UN,Revenues Plus,Financial,4811,,08/01/2020,0000451995,113.20,Revenue,ALLPAY LTD,00122276
South Ribble Council,http://statistics.data.gov.uk/doc/local-authority/30UN,Revenues Plus,Financial,4811,,08/01/2020,0000451995,46.00,Revenue,ALLPAY LTD,00122276
South Ribble Council,http://statistics.data.gov.uk/doc/local-authority/30UN,Shared Assurance Services,Employee Related Insurance,1800,SRBC - AON Broker & Consultancy fees 2020,29/01/2020,0000452317,"1,000.00",Revenue,Aon UK Limited Accounts Division,132142
South Ribble Council,http://statistics.data.gov.uk/doc/local-authority/30UN,Shared Assurance Services,Employee Related Insurance,1800,"SRBC - AON Insurance Renewal policies 2020 - General/Commercial Property, Bus. Interruption, Contract works, Computers, Crime and Terror",29/01/2020,0000452323,"5,335.68",Revenue,Aon UK Limited Accounts Division,132142
South Ribble Council,http://statistics.data.gov.uk/doc/local-authority/30UN,Shared Assurance Services,Employee Related Insurance,1800,SRBC - AON Broker & Consultancy fees 2020,29/01/2020,0000452345,"2,125.00",Revenue,Aon UK Limited Accounts Division,132142
South Ribble Council,http://statistics.data.gov.uk/doc/local-authority/30UN,Shared Assurance Services,Employee Related Insurance,1800,"SRBC - AON Insurance Renewal policies 2020 - General/commercial Property, Bus. Interruption, Contract works, Computers, Crime and Terror",29/01/2020,0000452346,"3,724.00",Revenue,Aon UK Limited Accounts Division,132142
South Ribble Council,http://statistics.data.gov.uk/doc/local-authority/30UN,Shared Assurance Services,Employee Related Insurance,1800,"SRBC - AON Insurance Renewal policies 2020 - General/commercial Property, Bus. Interruption, Contract works, Computers, Crime and Terror",29/01/2020,0000452347,"4,197.76",Revenue,Aon UK Limited Accounts Division,132142
South Ribble Council,http://statistics.data.gov.uk/doc/local-authority/30UN,Shared Assurance Services,Employee Related Insurance,1800,"SRBC - AON Insurance Renewal policies 2020 - General/commercial Property, Bus. Interruption, Contract works, Computers, Crime and Terror",29/01/2020,0000452348,"3,871.84",Revenue,Aon UK Limited Accounts Division,132142
South Ribble Council,http://statistics.data.gov.uk/doc/local-authority/30UN,Shared Assurance Services,Employee Related Insurance,1800,"SRBC - AON Insurance Renewal policies 2020 - General/commercial Property, Bus. Interruption, Contract works, Computers, Crime and Terror",29/01/2020,0000452349,"49,576.80",Revenue,Aon UK Limited Accounts Division,132142
South Ribble Council,http://statistics.data.gov.uk/doc/local-authority/30UN,Shared Assurance Services,Employee Related Insurance,1800,"Chancel Repair Insurance - Bowling Green at Eagle & Child, Leyland - LIS insurers total for 375 + 45 IPT = 420",29/01/2020,0000452451,420.00,Revenue,Aon UK Limited Accounts Division,132142
South Ribble Council,http://statistics.data.gov.uk/doc/local-authority/30UN,Democratic Services,Other Misc,4421,Use of ST TERESA`S SOCIAL CLUB for the Parliamentary Election on 12 December 2019.  ,08/01/2020,0000451824,480.00,Revenue,APCMC LTD,130995
South Ribble Council,http://statistics.data.gov.uk/doc/local-authority/30UN,Housing,Cap Grant- Improve Grants,C570,DFG WORKS FOR BATHROOM  AS PER SRBC SPEC AT ADDRESS REDACTED QUOTE 4681.86 TOTAL GRANT PAYABLE 4681.86,08/01/2020,0000451980,"4,681.86",Revenue,APG DOMESTIC SERVICES,00061463
South Ribble Council,http://statistics.data.gov.uk/doc/local-authority/30UN,Housing,Cap Grant- Improve Grants,C570,DFG WORKS FOR BATHROOM  AS PER SRBC SPEC AT ADDRESS REDACTED QUOTE 4426.55 TOTAL GRANT PAYABLE 4426.55,08/01/2020,0000451981,"4,426.55",Revenue,APG DOMESTIC SERVICES,00061463
South Ribble Council,http://statistics.data.gov.uk/doc/local-authority/30UN,Housing,Cap Grant- Improve Grants,C570,"DFG WORKS TO BATHROOM AT ADDRESS REDACTED. LOW QUOTE 4300.00 CLIENT HAS CHOSEN TO PAY EXTRA TO APG OF 108.82
",29/01/2020,0000452452,"4,058.82",Revenue,APG DOMESTIC SERVICES,00061463
South Ribble Council,http://statistics.data.gov.uk/doc/local-authority/30UN,Housing,Professional Fees,4510,"South Ribble Borough Council Local Housing Needs and Demand Study Total Cost 21,414 To be paid over three invoicing points",08/01/2020,0000451895,"6,424.20",Revenue,arc4 Limited,132965
South Ribble Council,http://statistics.data.gov.uk/doc/local-authority/30UN,Property Services,Rep & Maint Premises,2020,For 3 + 1 steel A/V toilet unit 16` for site at Penwortham Holme,22/01/2020,0000452245,515.60,Revenue,ASHTEAD PLANT HIRE CO LTD,00014245
South Ribble Council,http://statistics.data.gov.uk/doc/local-authority/30UN,Area 2 - Waste Transport/Eastern & Central Teams,Materials General,4040,ROLLERS TMF05TR JFC 13932,31/01/2020,0000452494,288.36,Revenue,BALMERS GM LTD,00016023
South Ribble Council,http://statistics.data.gov.uk/doc/local-authority/30UN,Housing,Cap Grant- Improve Grants,C570,DFG WORKS TO BATHROOM AT ADDRESS REDACTED AS PER QUOTE SUPPLIED FOLLOWING SRBC PLANS OF 4022.19 ,17/01/2020,0000452246,"4,022.19",Revenue,Bartons of Duke Street Ltd,132663
South Ribble Council,http://statistics.data.gov.uk/doc/local-authority/30UN,Property Services,Rep & Maint Premises,2020,Please attend Civic Centre and carry out emergency light upgrade to ground floor as requested by NAME REDACTED,10/01/2020,0000451884,"2,975.00",Revenue,BELEC ELECTRICAL LTD,130290
South Ribble Council,http://statistics.data.gov.uk/doc/local-authority/30UN,Property Services,Rep & Maint Premises,2020,Please make up 20 x 3 metre extension cables and move a few ceiling light to the 2nd floor east wing at the Civic Centre,29/01/2020,0000452453,460.84,Revenue,BELEC ELECTRICAL LTD,130290
South Ribble Council,http://statistics.data.gov.uk/doc/local-authority/30UN,Property Services,Rep & Maint Premises,2020,Extra order to cover the remainder of the sports pavilions for 2019/2020,29/01/2020,0000452454,273.00,Revenue,BELEC ELECTRICAL LTD,130290
South Ribble Council,http://statistics.data.gov.uk/doc/local-authority/30UN,Homelessness,Contributions,4730,Rental bond/deposit NAME REDACTED - ADDRESS REDACTED,31/01/2020,0000452578,630.00,Revenue,Bridgfords Countrywide Residential Lettings,133031
South Ribble Council,http://statistics.data.gov.uk/doc/local-authority/30UN,Regeneration,Other Misc,4851,Use of space for Veteran`s Cafe 12 sessions April 2019 - October 2019,31/01/2020,0000452570,"1,707.12",Revenue,BROTHERS OF CHARITY SERVICES,00086956
South Ribble Council,http://statistics.data.gov.uk/doc/local-authority/30UN,Neighbourhood Admin & Support,Materials General,4040, DERBY SLIMLINE LITTER BIN WITH ASHTRAY (BLUE) - BX45 2596 -  REF:352447/#REV2/SMI,31/01/2020,0000452455,"2,300.00",Revenue,BROXAP LTD,00028736
South Ribble Council,http://statistics.data.gov.uk/doc/local-authority/30UN,Democratic Services,Balance Sheet,0030,ECU SRBC forfeited deposits,08/01/2020,0000451850,500.00,Revenue,"Cabinet Office, Elections Claims Unit",131856
South Ribble Council,http://statistics.data.gov.uk/doc/local-authority/30UN,Environmental Health,Licence Fees,488B,fee sept to dec 19,10/01/2020,0000452103,"1,125.00",Revenue,Carr Street Community Centre,130312
South Ribble Council,http://statistics.data.gov.uk/doc/local-authority/30UN,Environmental Health,Licence Fees,488B,mgmt fee,31/01/2020,0000452438,"1,125.00",Revenue,Carr Street Community Centre,130312
South Ribble Council,http://statistics.data.gov.uk/doc/local-authority/30UN,Environmental Health,Training Expense-Course Fees,1400,3 x Emergency First Aid at Work (Blended Learning) � per NAME REDACTED,31/01/2020,0000452413,375.00,Revenue,Centaur Training Services (North West) Ltd,132060
South Ribble Council,http://statistics.data.gov.uk/doc/local-authority/30UN,Democratic Services,Other Misc,4421,80 X HAND HELD 3 KILO DE-ICERS PACKS FOR POLLING STATIONS FOR PARLIAMENTARY ELECTION ON 12 DECEMBER 2019,22/01/2020,0000452388,589.20,Revenue,Chameleon Facilities Ltd,132997
South Ribble Council,http://statistics.data.gov.uk/doc/local-authority/30UN,HR & Communications,Payroll Suspense,1741,MEMBERSHIP SUBSCRIPTION RENEWAL FOR NAME REDACTED 1 JANUARY - 31 DECEMBER 2020 - REF: 206682,17/01/2020,0000452174,310.00,Revenue,CHARTERED INST OF HOUSING,00018160
South Ribble Council,http://statistics.data.gov.uk/doc/local-authority/30UN,Property Services,Rep & Maint Fixed Plant,2035,Please supply & fit an additional camera to view the fuel tanks at Moss Side Depot as per quotation 682450,10/01/2020,0000451997,"1,099.00",Revenue,CHUBB LTD,00090625
South Ribble Council,http://statistics.data.gov.uk/doc/local-authority/30UN,HR & Communications,Training Expense-Course Fees,1402,NAME REDACTED TO ATTEND PTN STATUTORY COMPLIANCE IN PROPERTY ON 23 JANUARY 2020,15/01/2020,0000452044,375.00,Revenue,CIPFA,00018034
South Ribble Council,http://statistics.data.gov.uk/doc/local-authority/30UN,Development Enterprise & Comm Mgnt,Advertising,4842,Class Prism Case Showcase Customer Case Ref:  PRISM SC-1 Your Ref:   E - 12575 Cost: 3324 Case to be delivered by 31-3-20,17/01/2020,0000452199,"1,163.40",Revenue,CLICK NETHERFIELD LTD,130732
South Ribble Council,http://statistics.data.gov.uk/doc/local-authority/30UN,Property Services,Rep & Maint Premises,2020,For the provision of a DEC certificate for the Civic Centre 2019,17/01/2020,0000451538,550.00,Revenue,Coles Knapp,133001
South Ribble Council,http://statistics.data.gov.uk/doc/local-authority/30UN,Neighbourhood Admin & Support,Repair Costs,4050,LID ASSEMBLY KITS (1100 litre ORANGE TRADE  BIN) -,31/01/2020,0000452521,300.00,Revenue,CONTAINER CARE SOLUTIONS,00106742
South Ribble Council,http://statistics.data.gov.uk/doc/local-authority/30UN,Revenues Plus,Postage,4291,Postage for October to December 2019,08/01/2020,0000452004,354.58,Revenue,CRITIQOM,131053
South Ribble Council,http://statistics.data.gov.uk/doc/local-authority/30UN,Revenues Plus,Stationery,4130,Stationery for October to December 2019,08/01/2020,0000452005,351.73,Revenue,CRITIQOM,131053
South Ribble Council,http://statistics.data.gov.uk/doc/local-authority/30UN,Revenues Plus,Stationery,4130,Jan 2020 to March 2020,15/01/2020,0000452051,986.00,Revenue,CRITIQOM,131053
South Ribble Council,http://statistics.data.gov.uk/doc/local-authority/30UN,Revenues Plus,Postage,4291,Postage Jan 2020 to March 2020,22/01/2020,0000452282,546.83,Revenue,CRITIQOM,131053
South Ribble Council,http://statistics.data.gov.uk/doc/local-authority/30UN,Revenues Plus,Postage,4291,Postage Jan 2020 to March 2020,29/01/2020,0000452458,861.58,Revenue,CRITIQOM,131053
South Ribble Council,http://statistics.data.gov.uk/doc/local-authority/30UN,Legal,Legal,4821,TO PROVIDE ADVICE RE EMPLOYMENT MATTER,17/01/2020,0000451835,879.50,Revenue,DAC BEACHCROFT LLP,131193
South Ribble Council,http://statistics.data.gov.uk/doc/local-authority/30UN,Legal,Legal,4821,TO PROVIDE ADVICE RE AN EMPLOYMENT MATTER,22/01/2020,0000452285,"2,250.00",Revenue,DAC BEACHCROFT LLP,131193
South Ribble Council,http://statistics.data.gov.uk/doc/local-authority/30UN,Regeneration,Other Misc,4851,MC for the Community Awards on the 24th January 2020,24/01/2020,0000452055,500.00,Revenue,Dave Guest,132934
South Ribble Council,http://statistics.data.gov.uk/doc/local-authority/30UN,Area 2 - Waste Transport/Eastern & Central Teams,Materials General,4040,HYDRAULIC CYLINDER & TOP LOCATING AND BOTTOM LOCATING PINS VO65KRF JFC 13842,22/01/2020,0000451883,713.04,Revenue,DENNIS EAGLE LTD,00019774
South Ribble Council,http://statistics.data.gov.uk/doc/local-authority/30UN,Area 2 - Waste Transport/Eastern & Central Teams,Materials General,4040,WATER PUMP - VX18KLC - JFC13862,10/01/2020,0000451894,440.89,Revenue,DENNIS EAGLE LTD,00019774
South Ribble Council,http://statistics.data.gov.uk/doc/local-authority/30UN,Area 2 - Waste Transport/Eastern & Central Teams,Materials General,4040,10 X FLY BLOCKS VO65KRE JFC 13861,10/01/2020,0000451919,422.45,Revenue,DENNIS EAGLE LTD,00019774
South Ribble Council,http://statistics.data.gov.uk/doc/local-authority/30UN,Area 2 - Waste Transport/Eastern & Central Teams,Materials General,4040,IGNITION SWITCH VU11HSZ JFC 13865,10/01/2020,0000451919,113.49,Revenue,DENNIS EAGLE LTD,00019774
South Ribble Council,http://statistics.data.gov.uk/doc/local-authority/30UN,Area 2 - Waste Transport/Eastern & Central Teams,Materials General,4040,LEFT HAND REFLECTOR- VK09AHJ - JFC13940,22/01/2020,0000452230,61.35,Revenue,DENNIS EAGLE LTD,00019774
South Ribble Council,http://statistics.data.gov.uk/doc/local-authority/30UN,Area 2 - Waste Transport/Eastern & Central Teams,Materials General,4040,LEFT HAND INDICATOR - VK09AHJ - JFC13940,22/01/2020,0000452230,14.81,Revenue,DENNIS EAGLE LTD,00019774
South Ribble Council,http://statistics.data.gov.uk/doc/local-authority/30UN,Area 2 - Waste Transport/Eastern & Central Teams,Materials General,4040,HEAD LAMP MOUNTING BRACKET - VK09AHJ - 13940,22/01/2020,0000452230,339.96,Revenue,DENNIS EAGLE LTD,00019774
South Ribble Council,http://statistics.data.gov.uk/doc/local-authority/30UN,Area 2 - Waste Transport/Eastern & Central Teams,Materials General,4040,COVER PANEL - VK09AHJ - JFC13940,22/01/2020,0000452230,167.56,Revenue,DENNIS EAGLE LTD,00019774
South Ribble Council,http://statistics.data.gov.uk/doc/local-authority/30UN,Area 2 - Waste Transport/Eastern & Central Teams,Materials General,4040,LEFT HAND PANEL - VK09AHJ - JFC13940,22/01/2020,0000452230,143.12,Revenue,DENNIS EAGLE LTD,00019774
South Ribble Council,http://statistics.data.gov.uk/doc/local-authority/30UN,Area 2 - Waste Transport/Eastern & Central Teams,Materials General,4040,FOAM STRIP - VK09AHJ - JFC13940,22/01/2020,0000452230,36.63,Revenue,DENNIS EAGLE LTD,00019774
South Ribble Council,http://statistics.data.gov.uk/doc/local-authority/30UN,Area 2 - Waste Transport/Eastern & Central Teams,Materials General,4040,BUMPER VK09AHJ JFC 13940,31/01/2020,0000452294,253.56,Revenue,DENNIS EAGLE LTD,00019774
South Ribble Council,http://statistics.data.gov.uk/doc/local-authority/30UN,Area 2 - Waste Transport/Eastern & Central Teams,Materials General,4040,COVER PANEL VK09AHJ JFC 13940,31/01/2020,0000452294,19.24,Revenue,DENNIS EAGLE LTD,00019774
South Ribble Council,http://statistics.data.gov.uk/doc/local-authority/30UN,Area 2 - Waste Transport/Eastern & Central Teams,Materials General,4040,4 X RIVETS VK09AHJ JFC 13940,31/01/2020,0000452294,14.47,Revenue,DENNIS EAGLE LTD,00019774
South Ribble Council,http://statistics.data.gov.uk/doc/local-authority/30UN,Area 2 - Waste Transport/Eastern & Central Teams,Materials General,4040,WINDOW REGULATOR VK09AHJ JFC 13973,31/01/2020,0000452294,276.44,Revenue,DENNIS EAGLE LTD,00019774
South Ribble Council,http://statistics.data.gov.uk/doc/local-authority/30UN,Property Services,Rep & Maint Fixed Plant,2035,Citizens Advice Bureau - To attend site in regards to call out and general fault - as per NAME REDACTED,15/01/2020,0000452106,85.00,Revenue,DES Electrical Services Ltd,131437
South Ribble Council,http://statistics.data.gov.uk/doc/local-authority/30UN,Property Services,Rep & Maint Fixed Plant,2035,Citizens Advice Bureau - total cost for the above works for call out and general fault as per NAME REDACTED,15/01/2020,0000452106,682.50,Revenue,DES Electrical Services Ltd,131437
South Ribble Council,http://statistics.data.gov.uk/doc/local-authority/30UN,Neighbourhood Admin & Support,Operational Furniture & Equip,4010,Chainsaw Chain 36`` - ST36210000114,17/01/2020,0000452236,170.02,Revenue,DICK LEIGH,00026534
South Ribble Council,http://statistics.data.gov.uk/doc/local-authority/30UN,Neighbourhood Admin & Support,Operational Furniture & Equip,4010,G/BAR 3/8`` ROLLOMATIC 30``,17/01/2020,0000452236,91.73,Revenue,DICK LEIGH,00026534
South Ribble Council,http://statistics.data.gov.uk/doc/local-authority/30UN,Democratic Services,Professional Fees,4522,8 X DBS CHECKS FOR: 8x NAME REDACTED,24/01/2020,0000452296,320.00,Revenue,DISCLOSURE & BARRING SERVICE (CRB),00061984
South Ribble Council,http://statistics.data.gov.uk/doc/local-authority/30UN,Area 2 - Waste Transport/Eastern & Central Teams,Cap Vehicles,C440,Supply/Fit hot water Handwash complete with the necessary electrics & to convert existing socket in cab to permanent live - magnetic beacon use.,08/01/2020,0000451931,"1,014.00",Revenue,E. O`Donnell T/A Trailscot,132964
South Ribble Council,http://statistics.data.gov.uk/doc/local-authority/30UN,Regeneration,Other Misc,4851,po raised on wrong creditor 132825 in error,17/01/2020,0000451935,400.00,Revenue,EAZY PRINTING LTD,131156
South Ribble Council,http://statistics.data.gov.uk/doc/local-authority/30UN,Shared Assurance Services,Agency Fees,1121,Provision of Temporary Auditor,08/01/2020,0000451510,"1,272.24",Revenue,Eden Brown,132982
South Ribble Council,http://statistics.data.gov.uk/doc/local-authority/30UN,Shared Assurance Services,Agency Fees,1121,Provision of Temporary Auditor,08/01/2020,0000451645,"1,210.40",Revenue,Eden Brown,132982
South Ribble Council,http://statistics.data.gov.uk/doc/local-authority/30UN,Shared Assurance Services,Agency Fees,1121,Provision of Temporary Auditor,08/01/2020,0000451959,"1,457.78",Revenue,Eden Brown,132982
South Ribble Council,http://statistics.data.gov.uk/doc/local-authority/30UN,Shared Assurance Services,Agency Fees,1121,Provision of Temporary Auditor,08/01/2020,0000452013,"1,307.58",Revenue,Eden Brown,132982
South Ribble Council,http://statistics.data.gov.uk/doc/local-authority/30UN,Shared Assurance Services,Agency Fees,1121,Provision of Temporary Auditor,08/01/2020,0000452014,300.39,Revenue,Eden Brown,132982
South Ribble Council,http://statistics.data.gov.uk/doc/local-authority/30UN,Shared Assurance Services,Agency Fees,1121,Provision of Temporary Auditor,08/01/2020,0000452015,"1,448.94",Revenue,Eden Brown,132982
South Ribble Council,http://statistics.data.gov.uk/doc/local-authority/30UN,Shared Assurance Services,Agency Fees,1121,Provision of Temporary Auditor,22/01/2020,0000452234,"1,554.96",Revenue,Eden Brown,132982
South Ribble Council,http://statistics.data.gov.uk/doc/local-authority/30UN,Shared Assurance Services,Agency Fees,1121,Provision of Temporary Auditor,22/01/2020,0000452318,"1,519.62",Revenue,Eden Brown,132982
South Ribble Council,http://statistics.data.gov.uk/doc/local-authority/30UN,Information Services,Peripherals,4260,01 Jan 2019,15/01/2020,0000452129,"2,779.00",Revenue,EE Ltd,131653
South Ribble Council,http://statistics.data.gov.uk/doc/local-authority/30UN,Information Services,Peripherals,4260,non vat,15/01/2020,0000452129,27.38,Revenue,EE Ltd,131653
South Ribble Council,http://statistics.data.gov.uk/doc/local-authority/30UN,Information Services,Peripherals,4241,4 x Samsung Galaxy A40 phones @ 187.00 each,15/01/2020,0000452128,555.00,Revenue,EE Payment Processing,131950
South Ribble Council,http://statistics.data.gov.uk/doc/local-authority/30UN,Information Services,Peripherals,4244,5 x A40 Samsung devices @ 185.00 each,29/01/2020,0000452505,925.00,Revenue,EE Payment Processing,131950
South Ribble Council,http://statistics.data.gov.uk/doc/local-authority/30UN,Area 2 - Waste Transport/Eastern & Central Teams,External Contractors Charges,4570,SPEC REPAIR - PJ62UCG - JFC13873,31/01/2020,0000452405,287.96,Revenue,Elite Hydraulic Services Limited,132660
South Ribble Council,http://statistics.data.gov.uk/doc/local-authority/30UN,Information Services,Peripherals,4248,"ArcGIS annual maintenance and support for period 05/01/20 - 04/01/21, as per quote QUO-25137-J0R8F9",24/01/2020,0000452460,"14,501.00",Revenue,ESRI (UK) LTD,00053565
South Ribble Council,http://statistics.data.gov.uk/doc/local-authority/30UN,Area 2 - Waste Transport/Eastern & Central Teams,Materials General,4040,1 valve block YP11 CFM JFC13857,10/01/2020,0000452095,400.00,Revenue,Euro Municipals Ltd,132810
South Ribble Council,http://statistics.data.gov.uk/doc/local-authority/30UN,Area 2 - Waste Transport/Eastern & Central Teams,Materials General,4040,FRONT GRILL - VK09AHJ - JFC13940,22/01/2020,0000452201,250.00,Revenue,Euro Municipals Ltd,132810
South Ribble Council,http://statistics.data.gov.uk/doc/local-authority/30UN,Area 2 - Waste Transport/Eastern & Central Teams,Materials General,4040,"Valve Block, PJ62UCL, JFC13996 (NAME REDACTED)",31/01/2020,0000452381,400.00,Revenue,Euro Municipals Ltd,132810
South Ribble Council,http://statistics.data.gov.uk/doc/local-authority/30UN,Regeneration,Other Misc,4851,Father Christmas 2019,24/01/2020,0000452461,250.00,Revenue,EVENTS LIVE,131362
South Ribble Council,http://statistics.data.gov.uk/doc/local-authority/30UN,Area 2 - Waste Transport/Eastern & Central Teams,External Contractors Charges,4570,"4 CABLES, CONSUMABLES AND CARRIAGE - AS PER YOUR ESTINMATE 52183. - NAME REDACTED PA3430",22/01/2020,0000451809,844.01,Revenue,F R SHARROCK LTD,00034539
South Ribble Council,http://statistics.data.gov.uk/doc/local-authority/30UN,Area 2 - Waste Transport/Eastern & Central Teams,Materials General,4040,12 X LIFT RAM PIVOT BUSH BIN 1040,03/01/2020,0000451864,30.48,Revenue,F R SHARROCK LTD,00034539
South Ribble Council,http://statistics.data.gov.uk/doc/local-authority/30UN,Area 2 - Waste Transport/Eastern & Central Teams,Materials General,4040,6 X LIFT RAM PINS BIN 1041,03/01/2020,0000451864,226.56,Revenue,F R SHARROCK LTD,00034539
South Ribble Council,http://statistics.data.gov.uk/doc/local-authority/30UN,Area 2 - Waste Transport/Eastern & Central Teams,Materials General,4040,5 X BEARING HOUSING COLLAR BIN 1043,03/01/2020,0000451864,78.55,Revenue,F R SHARROCK LTD,00034539
South Ribble Council,http://statistics.data.gov.uk/doc/local-authority/30UN,Area 2 - Waste Transport/Eastern & Central Teams,Materials General,4040,2 X BEARING HOUSING NON-DRIVE BIN 1039,03/01/2020,0000451864,283.58,Revenue,F R SHARROCK LTD,00034539
South Ribble Council,http://statistics.data.gov.uk/doc/local-authority/30UN,Area 2 - Waste Transport/Eastern & Central Teams,Materials General,4040,10 X SPRING SPACER BIN 1045,03/01/2020,0000451864,25.80,Revenue,F R SHARROCK LTD,00034539
South Ribble Council,http://statistics.data.gov.uk/doc/local-authority/30UN,Area 2 - Waste Transport/Eastern & Central Teams,Materials General,4040,5 X SEAL SPACER BIN 1046,03/01/2020,0000451864,82.11,Revenue,F R SHARROCK LTD,00034539
South Ribble Council,http://statistics.data.gov.uk/doc/local-authority/30UN,Area 2 - Waste Transport/Eastern & Central Teams,Materials General,4040,2 X BEARING HOUSING DRIVE-SIDE BIN 1038,03/01/2020,0000451864,301.58,Revenue,F R SHARROCK LTD,00034539
South Ribble Council,http://statistics.data.gov.uk/doc/local-authority/30UN,Area 2 - Waste Transport/Eastern & Central Teams,Materials General,4040,2 X HEADLIGHT BEZELS PO16HMV JFC 13530,03/01/2020,0000451864,111.52,Revenue,F R SHARROCK LTD,00034539
South Ribble Council,http://statistics.data.gov.uk/doc/local-authority/30UN,Area 2 - Waste Transport/Eastern & Central Teams,Materials General,4040,AIR FILTER BOX PO16HMV JFC 13530,03/01/2020,0000451864,114.59,Revenue,F R SHARROCK LTD,00034539
South Ribble Council,http://statistics.data.gov.uk/doc/local-authority/30UN,Area 2 - Waste Transport/Eastern & Central Teams,Materials General,4040,CENTRE DECK RUBBER FLAP PO16HMV JFC 13530,03/01/2020,0000451864,16.95,Revenue,F R SHARROCK LTD,00034539
South Ribble Council,http://statistics.data.gov.uk/doc/local-authority/30UN,Area 2 - Waste Transport/Eastern & Central Teams,External Contractors Charges,4570,Charge for COTC cover - December 2019 4 weeks @ 120.00,10/01/2020,0000452073,480.00,Revenue,FCC Environment Services (UK) Ltd,131612
South Ribble Council,http://statistics.data.gov.uk/doc/local-authority/30UN,Area 2 - Waste Transport/Eastern & Central Teams,External Contractors Charges,4570,Residual Waste Collections December 2019,24/01/2020,0000452135,"45,660.96",Revenue,FCC Environment Services (UK) Ltd,131612
South Ribble Council,http://statistics.data.gov.uk/doc/local-authority/30UN,Area 2 - Waste Transport/Eastern & Central Teams,External Contractors Charges,4570,Dry recyclable non- terraced December 2019,24/01/2020,0000452135,"46,746.51",Revenue,FCC Environment Services (UK) Ltd,131612
South Ribble Council,http://statistics.data.gov.uk/doc/local-authority/30UN,Area 2 - Waste Transport/Eastern & Central Teams,External Contractors Charges,4570,Dry recyclable terraced - December 2019,24/01/2020,0000452135,"2,224.41",Revenue,FCC Environment Services (UK) Ltd,131612
South Ribble Council,http://statistics.data.gov.uk/doc/local-authority/30UN,Area 2 - Waste Transport/Eastern & Central Teams,External Contractors Charges,4570,Organic waste - non terraced December 2019,24/01/2020,0000452135,"32,371.11",Revenue,FCC Environment Services (UK) Ltd,131612
South Ribble Council,http://statistics.data.gov.uk/doc/local-authority/30UN,Area 2 - Waste Transport/Eastern & Central Teams,External Contractors Charges,4570,Schedule 2 properties December 2019,24/01/2020,0000452135,"1,860.35",Revenue,FCC Environment Services (UK) Ltd,131612
South Ribble Council,http://statistics.data.gov.uk/doc/local-authority/30UN,Area 2 - Waste Transport/Eastern & Central Teams,External Contractors Charges,4570,Commercial Waste Collections December 2019,24/01/2020,0000452135,"7,249.95",Revenue,FCC Environment Services (UK) Ltd,131612
South Ribble Council,http://statistics.data.gov.uk/doc/local-authority/30UN,Area 2 - Waste Transport/Eastern & Central Teams,External Contractors Charges,4570,Bulky waste collections December 2019,24/01/2020,0000452135,"1,005.57",Revenue,FCC Environment Services (UK) Ltd,131612
South Ribble Council,http://statistics.data.gov.uk/doc/local-authority/30UN,Area 2 - Waste Transport/Eastern & Central Teams,External Contractors Charges,4570,WEEE collections December 2019,24/01/2020,0000452135,377.48,Revenue,FCC Environment Services (UK) Ltd,131612
South Ribble Council,http://statistics.data.gov.uk/doc/local-authority/30UN,Area 2 - Waste Transport/Eastern & Central Teams,External Contractors Charges,4570,Clinical Waste Collections December 2019,24/01/2020,0000452135,643.04,Revenue,FCC Environment Services (UK) Ltd,131612
South Ribble Council,http://statistics.data.gov.uk/doc/local-authority/30UN,Area 2 - Waste Transport/Eastern & Central Teams,External Contractors Charges,4570,Replacement bins December 2019,24/01/2020,0000452135,"5,000.00",Revenue,FCC Environment Services (UK) Ltd,131612
South Ribble Council,http://statistics.data.gov.uk/doc/local-authority/30UN,Area 2 - Waste Transport/Eastern & Central Teams,External Contractors Charges,4570,Additional properties December 2019,24/01/2020,0000452135,"2,941.70",Revenue,FCC Environment Services (UK) Ltd,131612
South Ribble Council,http://statistics.data.gov.uk/doc/local-authority/30UN,Area 2 - Waste Transport/Eastern & Central Teams,Balance Sheet,0030,retention refuse,24/01/2020,0000452135,"-2,986.95",Revenue,FCC Environment Services (UK) Ltd,131612
South Ribble Council,http://statistics.data.gov.uk/doc/local-authority/30UN,Area 2 - Waste Transport/Eastern & Central Teams,Balance Sheet,0030,retention recycling,24/01/2020,0000452135,"-4,067.10",Revenue,FCC Environment Services (UK) Ltd,131612
South Ribble Council,http://statistics.data.gov.uk/doc/local-authority/30UN,Area 2 - Waste Transport/Eastern & Central Teams,Balance Sheet,0030,Recycling - Retention Claim Back July - December 2019,24/01/2020,0000452136,"23,933.83",Revenue,FCC Environment Services (UK) Ltd,131612
South Ribble Council,http://statistics.data.gov.uk/doc/local-authority/30UN,Area 2 - Waste Transport/Eastern & Central Teams,Balance Sheet,0030,Refuse - Retention Claim Back July - December 2019,24/01/2020,0000452136,"17,576.99",Revenue,FCC Environment Services (UK) Ltd,131612
South Ribble Council,http://statistics.data.gov.uk/doc/local-authority/30UN,Area 2 - Waste Transport/Eastern & Central Teams,Balance Sheet,0030,Clinical Waste - Retention Claim Back July - December 2019,24/01/2020,0000452136,78.70,Revenue,FCC Environment Services (UK) Ltd,131612
South Ribble Council,http://statistics.data.gov.uk/doc/local-authority/30UN,Area 2 - Waste Transport/Eastern & Central Teams,Balance Sheet,0030,Bulky Waste - Retention Claim Back July - December 2019,24/01/2020,0000452136,263.67,Revenue,FCC Environment Services (UK) Ltd,131612
South Ribble Council,http://statistics.data.gov.uk/doc/local-authority/30UN,Property Services,Operational Furniture & Equip,4010,To supply festive lights as required by NAME REDACTED,15/01/2020,0000450350,447.46,Revenue,FESTIVE LIGHTS,130235
South Ribble Council,http://statistics.data.gov.uk/doc/local-authority/30UN,Neighbourhood Admin & Support,Materials General,4040,FOOTBALL PITCH LINE MARKER PAINT 10LTRS - PITCHMARKER Q2,24/01/2020,0000452411,730.80,Revenue,Fleet Line Markers Limited,131942
South Ribble Council,http://statistics.data.gov.uk/doc/local-authority/30UN,Area 2 - Waste Transport/Eastern & Central Teams,Materials General,4040,6 X HIGH PRESSURE FILTER ELEMENT P4400-4000 BIN G029,03/01/2020,0000451702,671.84,Revenue,GEESINK NORBA LTD,132941
South Ribble Council,http://statistics.data.gov.uk/doc/local-authority/30UN,Area 2 - Waste Transport/Eastern & Central Teams,Materials General,4040,Glass and handle parts PF04 ULU JFC13827,15/01/2020,0000452086,254.37,Revenue,GIBSONS GARDEN MACHINERY LTD,00059051
South Ribble Council,http://statistics.data.gov.uk/doc/local-authority/30UN,Housing,Contributions,4730,Gas servicing for winter warmth scheme 2019/2020 8223.88,17/01/2020,0000452258,345.00,Revenue,GOS Heating Ltd,131387
South Ribble Council,http://statistics.data.gov.uk/doc/local-authority/30UN,Neighbourhood Admin & Support,Grounds Maintanance,2040, 3 x WALKING MAN 1000MM x 688 YELLOW,15/01/2020,0000452050,36.00,Revenue,Grassmats Ltd t/a Thermmark,132892
South Ribble Council,http://statistics.data.gov.uk/doc/local-authority/30UN,Neighbourhood Admin & Support,Grounds Maintanance,2040,60mts YELLOW LINE 100mm,15/01/2020,0000452050,112.20,Revenue,Grassmats Ltd t/a Thermmark,132892
South Ribble Council,http://statistics.data.gov.uk/doc/local-authority/30UN,Neighbourhood Admin & Support,Grounds Maintanance,2040,300meters Blue Line 100mm,15/01/2020,0000452050,561.00,Revenue,Grassmats Ltd t/a Thermmark,132892
South Ribble Council,http://statistics.data.gov.uk/doc/local-authority/30UN,Neighbourhood Admin & Support,Grounds Maintanance,2040,2 x Primer 5kg,15/01/2020,0000452050,50.00,Revenue,Grassmats Ltd t/a Thermmark,132892
South Ribble Council,http://statistics.data.gov.uk/doc/local-authority/30UN,Neighbourhood Admin & Support,Grounds Maintanance,2040,freight,15/01/2020,0000452050,40.00,Revenue,Grassmats Ltd t/a Thermmark,132892
South Ribble Council,http://statistics.data.gov.uk/doc/local-authority/30UN,Regeneration,Other Misc,4851,Community Advertising of South Ribble Heritage in Special Edition ROF Magazine,31/01/2020,0000452583,250.00,Revenue,Green Man Marketing,132298
South Ribble Council,http://statistics.data.gov.uk/doc/local-authority/30UN,Property Services,Rep & Maint Premises,2020,Works as per Quote QU - 0025 dated 12 Dec 2019 as per NAME REDACTED - for Worden Park rear of the Walled Garden,15/01/2020,0000452134,800.00,Revenue,Greenfield Removals,132425
South Ribble Council,http://statistics.data.gov.uk/doc/local-authority/30UN,Revenues Plus,Professional Fees,4510,Bankruptcy Charging Order,08/01/2020,0000451900,506.00,Revenue,Greenhalgh Kerr,132061
South Ribble Council,http://statistics.data.gov.uk/doc/local-authority/30UN,Revenues Plus,Professional Fees,4510,disbursments,08/01/2020,0000451900,348.00,Revenue,Greenhalgh Kerr,132061
South Ribble Council,http://statistics.data.gov.uk/doc/local-authority/30UN,Revenues Plus,Professional Fees,4510,matter L0001796 NAME REDACTED po completed in error,08/01/2020,0000451901,438.00,Revenue,Greenhalgh Kerr,132061
South Ribble Council,http://statistics.data.gov.uk/doc/local-authority/30UN,Revenues Plus,Professional Fees,4510,court & land reg fee,08/01/2020,0000451901,174.00,Revenue,Greenhalgh Kerr,132061
South Ribble Council,http://statistics.data.gov.uk/doc/local-authority/30UN,Shared Assurance Services,Agency Fees,1121,NAME REDACTED- Temporary Head of Shared Assurance Services for week ending period 8/11/2019 - 20/12/2019 ,08/01/2020,0000451617,"2,299.53",Revenue,Hays Specialist Recruitment Ltd,132288
South Ribble Council,http://statistics.data.gov.uk/doc/local-authority/30UN,Shared Assurance Services,Agency Fees,1121,Internal Auditor - NAME REDACTED for week ending period 8/11/19 - 27/03/19 (excluding Christmas closedown),08/01/2020,0000451618,"1,421.05",Revenue,Hays Specialist Recruitment Ltd,132288
South Ribble Council,http://statistics.data.gov.uk/doc/local-authority/30UN,Shared Assurance Services,Agency Fees,1121,NAME REDACTED - Temporary Head of Shared Assurance Services for week ending period 8/11/2019 - 20/12/2019,08/01/2020,0000451628,"1,837.32",Revenue,Hays Specialist Recruitment Ltd,132288
South Ribble Council,http://statistics.data.gov.uk/doc/local-authority/30UN,Shared Assurance Services,Agency Fees,1121,Internal Auditor - NAME REDACTED for week ending period 8/11/19 - 27/03/19 (excluding Christmas closedown),08/01/2020,0000451670,872.52,Revenue,Hays Specialist Recruitment Ltd,132288
South Ribble Council,http://statistics.data.gov.uk/doc/local-authority/30UN,Shared Assurance Services,Agency Fees,1121,Internal Auditor - NAME REDACTED for week ending period 8/11/19 - 27/03/19 (excluding Christmas closedown) ,08/01/2020,0000451881,"1,233.78",Revenue,Hays Specialist Recruitment Ltd,132288
South Ribble Council,http://statistics.data.gov.uk/doc/local-authority/30UN,Shared Assurance Services,Agency Fees,1121,NAME REDACTED - Temporary Head of Shared Assurance Services for week ending period 8/11/2019 - 20/12/2019 ,08/01/2020,0000451971,"2,323.70",Revenue,Hays Specialist Recruitment Ltd,132288
South Ribble Council,http://statistics.data.gov.uk/doc/local-authority/30UN,Shared Assurance Services,Agency Fees,1121,Internal Auditor - NAME REDACTED for week ending period 8/11/19 - 27/03/19 (excluding Christmas closedown) ,08/01/2020,0000451972,"1,421.88",Revenue,Hays Specialist Recruitment Ltd,132288
South Ribble Council,http://statistics.data.gov.uk/doc/local-authority/30UN,Shared Assurance Services,Agency Fees,1121,NAME REDACTED - Temporary Head of Shared Assurance Services for week ending period 8/11/2019 - 20/12/2019,08/01/2020,0000451973,"2,289.15",Revenue,Hays Specialist Recruitment Ltd,132288
South Ribble Council,http://statistics.data.gov.uk/doc/local-authority/30UN,Shared Assurance Services,Agency Fees,1121,Internal Auditor - NAME REDACTED for week ending period 8/11/19 - 27/03/19 (excluding Christmas closedown),15/01/2020,0000452061,290.01,Revenue,Hays Specialist Recruitment Ltd,132288
South Ribble Council,http://statistics.data.gov.uk/doc/local-authority/30UN,Environmental Health,Licence Fees,488B,fee sept to dec 19,10/01/2020,0000452108,"1,000.00",Revenue,HIGHER WALTON COMMUNITY CENTRE,00070535
South Ribble Council,http://statistics.data.gov.uk/doc/local-authority/30UN,Environmental Health,Licence Fees,488B,fee 4th qtr,31/01/2020,0000452439,"1,000.00",Revenue,HIGHER WALTON COMMUNITY CENTRE,00070535
South Ribble Council,http://statistics.data.gov.uk/doc/local-authority/30UN,Shared Financial Services,Balance Sheet,0140,,08/01/2020,0000451869,480.00,Revenue,HM REVENUE & CUSTOMS,00024837
South Ribble Council,http://statistics.data.gov.uk/doc/local-authority/30UN,Democratic Services,Other Misc,4421,Use of the venue for the Parliamentary Election on 12 December 2019.  ,22/01/2020,0000452207,260.00,Revenue,HUTTON VILLAGE HALL,00023579
South Ribble Council,http://statistics.data.gov.uk/doc/local-authority/30UN,Area 3 - Parks/Leyland East West,Capital Expenditure,C230,PRODUCTION OF TENDER DOCUMENTS AND TENDER ANALYSIS AND REPORT,17/01/2020,0000452144,"1,060.00",Revenue,Ian Brew QS Consultancy,132974
South Ribble Council,http://statistics.data.gov.uk/doc/local-authority/30UN,Information Services,Peripherals,4248,"Lalpac user licence maintenance 3,035.88,  LALM Lalpac Comprehensive package (Classic)8,998.28, for period 23/01/20 - 22/01/21",22/01/2020,0000452337,"12,034.16",Revenue,IDOX PLC,00104485
South Ribble Council,http://statistics.data.gov.uk/doc/local-authority/30UN,Information Services,Peripherals,4248,Annual Nessus Professional Licence 12 month renewal @ 1956.49 and Rapidspike River Licence @ 1200.00 for period 29/01/20 - 28/01/21,10/01/2020,0000452091,"3,156.49",Revenue,Info Security People Ltd,132693
South Ribble Council,http://statistics.data.gov.uk/doc/local-authority/30UN,Revenues Plus,Professional Fees,4510,"RV Finder - Hoole Village Hall, Fox Cub, Burnside",17/01/2020,0000452239,"7,555.50",Revenue,Inform CPI Ltd,131666
South Ribble Council,http://statistics.data.gov.uk/doc/local-authority/30UN,Information Services,Peripherals,4243,2 x Red Hat Enterprise Linux Server Standard for 1 yr,24/01/2020,0000452463,960.42,Revenue,INSIGHT UK,00120744
South Ribble Council,http://statistics.data.gov.uk/doc/local-authority/30UN,Revenues Plus,Professional Fees,4520,IRRV Forum Membership 2020,08/01/2020,0000451893,"1,200.00",Revenue,INST OF REVENUES RATING & VALUATION,00024950
South Ribble Council,http://statistics.data.gov.uk/doc/local-authority/30UN,Neighbourhood Admin & Support,Materials General,4040,QC10 - QUICK SET CONCRETE,29/01/2020,0000452512,"1,228.64",Revenue,INSTARMAC GROUP PLC,00024905
South Ribble Council,http://statistics.data.gov.uk/doc/local-authority/30UN,Area 3 - Parks/Leyland East West,Grounds Maint Cntrctrs Chgs,4657,"ADDITIONAL DETAILS AND AMENDMENT TO FLY-THROUGH, HURST GRANGE PARK COACH HOUSE",24/01/2020,0000452339,750.00,Revenue,Ivan Wilson Architect,133006
South Ribble Council,http://statistics.data.gov.uk/doc/local-authority/30UN,Area 3 - Parks/Leyland East West,Materials General,4046,150 x Prunus Rotundifolia 3L @ 2.40 each + Vat,03/01/2020,0000451889,360.00,Revenue,J A JONES & SONS,00025548
South Ribble Council,http://statistics.data.gov.uk/doc/local-authority/30UN,Regeneration,Capital Expenditure,C230,Supply and deliver trees,10/01/2020,0000452017,"6,824.45",Revenue,J A JONES & SONS,00025548
South Ribble Council,http://statistics.data.gov.uk/doc/local-authority/30UN,Regeneration,Capital Expenditure,C230,prunus domestic,10/01/2020,0000452017,55.00,Revenue,J A JONES & SONS,00025548
South Ribble Council,http://statistics.data.gov.uk/doc/local-authority/30UN,Area 3 - Parks/Leyland East West,Capital Expenditure,C230,"Plants as per attached list - Delivery to Worden Park, Leyland PR25 3DH. Please call  NUMBER REDACTED 30 minutes prior to delivery.",31/01/2020,0000452428,"5,040.00",Revenue,J A JONES & SONS,00025548
South Ribble Council,http://statistics.data.gov.uk/doc/local-authority/30UN,Area 3 - Parks/Leyland East West,Grounds Maint Cntrctrs Chgs,4657,Trees for Worden Park Arboretum as on attached list,31/01/2020,0000452495,446.00,Revenue,J A JONES & SONS,00025548
South Ribble Council,http://statistics.data.gov.uk/doc/local-authority/30UN,Area 3 - Parks/Leyland East West,Capital Expenditure,C230,"Plants as per attached list - Delivery to Worden Park, Leyland PR25 3DH. Please call NUMBER REDACTED 30 minutes prior to delivery.",31/01/2020,0000452515,845.00,Revenue,J A JONES & SONS,00025548
South Ribble Council,http://statistics.data.gov.uk/doc/local-authority/30UN,Area 2 - Waste Transport/Eastern & Central Teams,Operational Furniture & Equip,4010,1 X Samoa Oil Dispenser (325000),22/01/2020,0000452196,221.00,Revenue,J SEED & CO LTD,00121675
South Ribble Council,http://statistics.data.gov.uk/doc/local-authority/30UN,Area 2 - Waste Transport/Eastern & Central Teams,Operational Furniture & Equip,4010,2 x Oil Flow Meter @ 170.00 each,22/01/2020,0000452196,340.00,Revenue,J SEED & CO LTD,00121675
South Ribble Council,http://statistics.data.gov.uk/doc/local-authority/30UN,Area 2 - Waste Transport/Eastern & Central Teams,Operational Furniture & Equip,4010,CARRIAGE,22/01/2020,0000452196,12.50,Revenue,J SEED & CO LTD,00121675
South Ribble Council,http://statistics.data.gov.uk/doc/local-authority/30UN,Property Services,Capital Expenditure,C230,North Lodge and carry out works as per your estimate 5419 as per NAME REDACTED Supply and install 5 radiators Replace all heating pipework ,03/01/2020,0000451903,"1,770.00",Revenue,J Whittle plumbing & heating,132695
South Ribble Council,http://statistics.data.gov.uk/doc/local-authority/30UN,Property Services,Rep & Maint Premises,2020,"Middleforth unit, New water supply, Connect to water supply from toilets next door with water sub meter. Connect new supply to existing kitchen",08/01/2020,0000451923,390.00,Revenue,J Whittle plumbing & heating,132695
South Ribble Council,http://statistics.data.gov.uk/doc/local-authority/30UN,Property Services,Rep & Maint Premises,2020,"Please attend the Derby wing, Worden park to replace the burner to the boiler as per quotation in your e-mail dated 6th December 2019",22/01/2020,0000452248,958.00,Revenue,JAMES MERCER GROUP LTD,00028587
South Ribble Council,http://statistics.data.gov.uk/doc/local-authority/30UN,Planning,Advertising,4841,Public notices for planning application to be published in the Lancashire Evening Post,22/01/2020,0000451607,729.00,Revenue,JPI Media - JOHNSTON PUBLISHING (NORTH WEST),00011345
South Ribble Council,http://statistics.data.gov.uk/doc/local-authority/30UN,Area 1 - Penwortham Western Parishes,Materials General,4040,Public Notice in Lancashire Evening Post,24/01/2020,0000451632,810.00,Revenue,JPI Media - JOHNSTON PUBLISHING (NORTH WEST),00011345
South Ribble Council,http://statistics.data.gov.uk/doc/local-authority/30UN,Planning,Advertising,4841,Public notices for planning application to be published in the Lancashire Evening Post,22/01/2020,0000451807,810.00,Revenue,JPI Media - JOHNSTON PUBLISHING (NORTH WEST),00011345
South Ribble Council,http://statistics.data.gov.uk/doc/local-authority/30UN,Planning,Advertising,4841,Public notices for planning application to be published in the Lancashire Evening Post,22/01/2020,0000451970,729.00,Revenue,JPI Media - JOHNSTON PUBLISHING (NORTH WEST),00011345
South Ribble Council,http://statistics.data.gov.uk/doc/local-authority/30UN,Planning,Advertising,4841,Public notices for planning application to be published in the Lancashire Evening Post,22/01/2020,0000452209,729.00,Revenue,JPI Media - JOHNSTON PUBLISHING (NORTH WEST),00011345
South Ribble Council,http://statistics.data.gov.uk/doc/local-authority/30UN,Area 3 - Parks/Leyland East West,Grounds Maint Cntrctrs Chgs,4657,Hire of tracked cherry picker on 10th/11th December for Withy Grove Playground.,10/01/2020,0000452037,560.00,Revenue,K H HIRE SERVICES,00012933
South Ribble Council,http://statistics.data.gov.uk/doc/local-authority/30UN,Area 2 - Waste Transport/Eastern & Central Teams,Cap Vehicles,C440,Supply & Fit of Chapter 8 Chevrons to rear of 2 x Peugeot Experts as per quote dated 10/12/19.,03/01/2020,0000451899,296.00,Revenue,KDJ Dezigns LTD T/A Sign Dezign,132993
South Ribble Council,http://statistics.data.gov.uk/doc/local-authority/30UN,Regeneration,Contributions,4730,Holiday Hunger Project,10/01/2020,0000452062,"1,077.15",Revenue,KEY UNLOCKING FUTURES LTD,00098601
South Ribble Council,http://statistics.data.gov.uk/doc/local-authority/30UN,Homelessness,Contributions,4730,KEY HOUSING ADVICE & MEDIATION Q4 JAN TO MAR 2019/20,22/01/2020,0000452240,"4,875.00",Revenue,KEY UNLOCKING FUTURES LTD,00098601
South Ribble Council,http://statistics.data.gov.uk/doc/local-authority/30UN,Environmental Health,Materials General,4041,30 x Rat Trap - Big Snap - E @ 1.97,31/01/2020,0000452464,64.50,Revenue,KILLGERM CHEMICALS LTD,00025894
South Ribble Council,http://statistics.data.gov.uk/doc/local-authority/30UN,Environmental Health,Materials General,4041,20 x Flea Traps 110-00140 @ 12.87,31/01/2020,0000452464,200.00,Revenue,KILLGERM CHEMICALS LTD,00025894
South Ribble Council,http://statistics.data.gov.uk/doc/local-authority/30UN,Environmental Health,Materials General,4041,1 box of 50 AF Insect Detector AF150BLA,31/01/2020,0000452464,15.00,Revenue,KILLGERM CHEMICALS LTD,00025894
South Ribble Council,http://statistics.data.gov.uk/doc/local-authority/30UN,Environmental Health,Materials General,4041,1 box 100 Insect Detector Crawling Pads AF1100CRA,31/01/2020,0000452464,14.00,Revenue,KILLGERM CHEMICALS LTD,00025894
South Ribble Council,http://statistics.data.gov.uk/doc/local-authority/30UN,Democratic Services,Balance Sheet,0030,SRBC returned parliment deposit,08/01/2020,0000451829,500.00,Revenue,Labour Party,132274
South Ribble Council,http://statistics.data.gov.uk/doc/local-authority/30UN,Planning,Professional Fees,4510,Investment property strategy 2018 - 2019,22/01/2020,0000452167,"3,200.00",Revenue,Lambert Smith Hampton Investment Management Ltd,132594
South Ribble Council,http://statistics.data.gov.uk/doc/local-authority/30UN,Area 2 - Waste Transport/Eastern & Central Teams,Waste Disposal Charges,5112,November 2019 - Incineration of Clinical Waste,17/01/2020,0000452250,367.00,Revenue,LANCASHIRE TEACHING FT,00120715
South Ribble Council,http://statistics.data.gov.uk/doc/local-authority/30UN,Area 2 - Waste Transport/Eastern & Central Teams,Waste Disposal Charges,5112,October 2019 - Incineration of Clinical Waste,17/01/2020,0000452251,469.56,Revenue,LANCASHIRE TEACHING FT,00120715
South Ribble Council,http://statistics.data.gov.uk/doc/local-authority/30UN,Housing,Cap Grant- Improve Grants,C570,DFG WORKS TO SUPPLY AND INSTALL A STAIRLIFT AT ADDRESS REDACTED AS PER QUOTE SUPPLIED OF 804.00 COST 804.00,10/01/2020,0000452068,804.00,Revenue,LANCS COUNTY COUNCIL,00041645
South Ribble Council,http://statistics.data.gov.uk/doc/local-authority/30UN,Housing,Cap Grant- Improve Grants,C570,DFG WORKS TO SUPPLY AND INSTALL A STAIRLIFT AT ADDRESS REDACTED AS PER QUOTE OF 3734.00 SUPPLIED COST 3734.00,29/01/2020,0000452069,"3,734.00",Revenue,LANCS COUNTY COUNCIL,00041645
South Ribble Council,http://statistics.data.gov.uk/doc/local-authority/30UN,Housing,Cap Grant- Improve Grants,C570,DFG WORKS TO SUPPLY AND INSTALL A CLOSOMAT AT ADDRESS REDACTED AS PER QUOTE PROVIDED OF 3305.00 COST 3305.00,10/01/2020,0000452070,"3,305.00",Revenue,LANCS COUNTY COUNCIL,00041645
South Ribble Council,http://statistics.data.gov.uk/doc/local-authority/30UN,Housing,Cap Grant- Improve Grants,C570,DFG WORKS TO SUPPLY AND INSTALL GEBERIT TOILET AT ADDRESS REDACTED AS PER QUOTE SUPPLIED COST 3450.00,10/01/2020,0000452071,"3,450.00",Revenue,LANCS COUNTY COUNCIL,00041645
South Ribble Council,http://statistics.data.gov.uk/doc/local-authority/30UN,Legal,Other Local Authorities,4530,LAND CHARGES - DECEMBER 2019,17/01/2020,0000452139,479.50,Revenue,LANCS COUNTY COUNCIL,00041645
South Ribble Council,http://statistics.data.gov.uk/doc/local-authority/30UN,HR & Communications,Other Local Authorities,4531,PAYROLL SERVICES - JANUARY - MARCH 2020,22/01/2020,0000452210,"5,750.00",Revenue,LANCS COUNTY COUNCIL,00041645
South Ribble Council,http://statistics.data.gov.uk/doc/local-authority/30UN,Housing,Cap Grant- Improve Grants,C570,DFG WORKS TO SUPPLY AND INSTALL A STAIRLIFT AS PER QUOTE AT ADDRESS REDACTED COST 4186.00,17/01/2020,0000452252,"4,186.00",Revenue,LANCS COUNTY COUNCIL,00041645
South Ribble Council,http://statistics.data.gov.uk/doc/local-authority/30UN,Housing,Cap Grant- Improve Grants,C570,DFG WORKS TO SUPPLY AND INSTALL A STAIRLIFT AT ADDRESS REDACTED AS PER QUOTE SUPPLIED BY STANNAH LIFT SERVICES.,17/01/2020,0000452253,"2,944.00",Revenue,LANCS COUNTY COUNCIL,00041645
South Ribble Council,http://statistics.data.gov.uk/doc/local-authority/30UN,Housing,Cap Grant- Improve Grants,C570,DFG WORKS TO SUPPLY AND INSTALL HOIST EQUIPMENT AT ADDRESS REDACTED AS PER QUOTE SUPPLIED COST 3480.41,17/01/2020,0000452254,"3,480.41",Revenue,LANCS COUNTY COUNCIL,00041645
South Ribble Council,http://statistics.data.gov.uk/doc/local-authority/30UN,Area 2 - Waste Transport/Eastern & Central Teams,Contractors Charges 5,5412,"Quarter 2 Disposal Fee, Landfill Tax & 5% Admin Fee",24/01/2020,0000452420,"57,184.23",Revenue,LANCS COUNTY COUNCIL,00041645
South Ribble Council,http://statistics.data.gov.uk/doc/local-authority/30UN,HR & Communications,Training Expense-Course Fees,1402,"NAMES REDACTED AND ONE OTHER TO ATTEND TI - WORKING IN THE HIGHWAY AT MOSS SIDE DEPOT, LEYLAND @ 60 / CANDIDATE",29/01/2020,0000452465,360.00,Revenue,LANCS COUNTY COUNCIL,00041645
South Ribble Council,http://statistics.data.gov.uk/doc/local-authority/30UN,Area 2 - Waste Transport/Eastern & Central Teams,Materials General,4040,BRAKE PADS AND DISCS YA19NKC JFC 13958,29/01/2020,0000452466,260.00,Revenue,LANCS DAF,00026424
South Ribble Council,http://statistics.data.gov.uk/doc/local-authority/30UN,Regeneration,Professional Fees,4510,Leading friends Group Preston Junction,08/01/2020,0000451994,"1,666.67",Revenue,LANCS WILDLIFE TRUST,00027009
South Ribble Council,http://statistics.data.gov.uk/doc/local-authority/30UN,Regeneration,Professional Fees,4510,Leading friends Group Preston Junction,29/01/2020,0000452270,833.33,Revenue,LANCS WILDLIFE TRUST,00027009
South Ribble Council,http://statistics.data.gov.uk/doc/local-authority/30UN,Area 3 - Parks/Leyland East West,Capital Expenditure,C230,REPLACEMENT OF LOG ENDINGS AT WORDEN AND FARINGTON PARK PLAYGROUNDS,15/01/2020,0000451742,"12,580.74",Revenue,LANDSCAPE ENGINEERING LIMITED,130416
South Ribble Council,http://statistics.data.gov.uk/doc/local-authority/30UN,Property Services,Rep & Maint Premises,2020,"Please attend Moss Side Depot Works Yard, Bison Place, Leyland and carry out works as per quote PR5096 as per NAME REDACTED",29/01/2020,0000452496,"6,262.00",Revenue,LANES GROUP PLC,131048
South Ribble Council,http://statistics.data.gov.uk/doc/local-authority/30UN,HR & Communications,Other Misc,4851,PHOTOGRAPHY FOR THE LEYLAND CHRISTMAS FESTIVAL ON SATURDAY 23 NOVEMBER 2019 - ALL DAY,15/01/2020,0000451647,475.00,Revenue,Lawrence Clift Photography,132005
South Ribble Council,http://statistics.data.gov.uk/doc/local-authority/30UN,Democratic Services,Other Misc,4421,Use of the venue for the Parliamentary Election on 12 December 2019.  ,08/01/2020,0000451706,325.00,Revenue,LEYLAND BAPTIST CHURCH,00048758
South Ribble Council,http://statistics.data.gov.uk/doc/local-authority/30UN,Property Services,Advertising,4841,Sponsorship of Radio Leyland Mid Morning Music Mix Up to March 2020 - Leyland Market to be heard approx. 10 times per week day morning. ,17/01/2020,0000452301,400.00,Revenue,Leyland Community Radio Limited,132256
South Ribble Council,http://statistics.data.gov.uk/doc/local-authority/30UN,Property Services,Rep & Maint Premises,2020,Please attend Bamber Bridge Leisure Centre and repair the fire exit stairwell - galvanised stair treads with yellow grip strip per NAME REDACTED,15/01/2020,0000451880,"1,750.00",Revenue,Leyland Lane Wrought Iron Gates & Railings,132012
South Ribble Council,http://statistics.data.gov.uk/doc/local-authority/30UN,Area 3 - Parks/Leyland East West,External Contractors Charges,4570,2 grills with galvanised finish 75mm spacing with 12mm round bar,31/01/2020,0000452502,585.00,Revenue,Leyland Lane Wrought Iron Gates & Railings,132012
South Ribble Council,http://statistics.data.gov.uk/doc/local-authority/30UN,Democratic Services,Other Misc,4421,Use of the venue for the Parliamentary Election on 12 December 2019.  ,10/01/2020,0000451664,310.00,Revenue,LEYLAND METHODIST CHURCH,130071
South Ribble Council,http://statistics.data.gov.uk/doc/local-authority/30UN,Housing,Cap Grant- Improve Grants,C570,"DFG WORKS TO BATHROOM AT ADDRESS REDACTED AS PER SRBC PLANS AND QUOTE SUPPLIED CLIENT 2527.55, GRANT 1422.45",22/01/2020,0000452371,"1,622.45",Revenue,LTL CONSTRUCTION & MAINTENANCE LTD,131406
South Ribble Council,http://statistics.data.gov.uk/doc/local-authority/30UN,Housing,Cap Grant- Improve Grants,C570,"DFG WORKS FOR DOOR ALTERATIONS AT ADDRESS REDACTED . New progress property, grant is 778.27 Total Cost 778.27",08/01/2020,0000452019,577.66,Revenue,MAHONEY CONTRACTORS LTD,131271
South Ribble Council,http://statistics.data.gov.uk/doc/local-authority/30UN,Housing,Cap Grant- Improve Grants,C570,"DFG WORKS FOR LEVEL ACCESS BATHROOM AT ADDRESS REDACTED. New progress property, grant is 3256.35 Total Cost 3256.35",22/01/2020,0000452372,"3,256.35",Revenue,MAHONEY CONTRACTORS LTD,131271
South Ribble Council,http://statistics.data.gov.uk/doc/local-authority/30UN,Housing,Cap Grant- Improve Grants,C570,"DFG WORKS FOR LEVEL ACCESS BATHROOM AT ADDRESS REDACTED . New progress property, grant 2918.01 Total Cost 2918.01",22/01/2020,0000452379,"2,918.01",Revenue,MAHONEY CONTRACTORS LTD,131271
South Ribble Council,http://statistics.data.gov.uk/doc/local-authority/30UN,Information Services,Training Expense-Course Fees,1420,"Openscape - Contact Centre Real Time Reports & Broadcaster, Contact Centre Basic Administration, Contact Centre Key User Agent Portal",03/01/2020,0000451926,"4,700.00",Revenue,Maintel Europe Ltd,132500
South Ribble Council,http://statistics.data.gov.uk/doc/local-authority/30UN,Development Enterprise & Comm Mgnt,Other Misc,485I,"Partnership payment including STEAM monitoring and website/marketing campaign inclusion 2019/20. Partnership price 2,650",29/01/2020,0000452335,"2,650.00",Revenue,MARKETING LANCASHIRE LIMITED,00089885
South Ribble Council,http://statistics.data.gov.uk/doc/local-authority/30UN,Property Services,Rep & Maint Premises,2020,PO closed in error by NAME REDACTED when reversed amount,31/01/2020,0000452544,400.00,Revenue,Mick Bamber,132873
South Ribble Council,http://statistics.data.gov.uk/doc/local-authority/30UN,Property Services,Rep & Maint Premises,2020,Please attend Red frog Photography as per your quote dated 1 st Nov 2019 as per NAME REDACTED,29/01/2020,0000452545,"3,700.00",Revenue,Mick Bamber,132873
South Ribble Council,http://statistics.data.gov.uk/doc/local-authority/30UN,Property Services,Rep & Maint Premises,2020,Please undertake work to the guttering & downpipes at Worden craft units as agreed with the Facilties officer,29/01/2020,0000452548,"4,800.00",Revenue,Mick Bamber,132873
South Ribble Council,http://statistics.data.gov.uk/doc/local-authority/30UN,Property Services,Rep & Maint Premises,2020,Please attend Worden Park Clock Tower and carry out work as per estimate 1011 dated 6th Jan 2020,29/01/2020,0000452549,380.00,Revenue,Mick Bamber,132873
South Ribble Council,http://statistics.data.gov.uk/doc/local-authority/30UN,Environmental Health,Licence Fees,488B,sept to dec 19,10/01/2020,0000452109,"1,375.00",Revenue,MOSS SIDE COMMUNITY FORUM,00098724
South Ribble Council,http://statistics.data.gov.uk/doc/local-authority/30UN,Healthy Communities,Other Misc,4861,contribution towards VE Day,29/01/2020,0000452391,300.00,Revenue,MOSS SIDE COMMUNITY FORUM,00098724
South Ribble Council,http://statistics.data.gov.uk/doc/local-authority/30UN,Information Services,Peripherals,4241,"4 x Apple 11`` iPad Pro @ 778 each, 4 x iPad 11 Smart Keyboard Folio @ 155 each, plus delivery, as per quote 185452",08/01/2020,0000451821,"3,742.00",Revenue,MYPREMIER LTD,130091
South Ribble Council,http://statistics.data.gov.uk/doc/local-authority/30UN,Area 2 - Waste Transport/Eastern & Central Teams,Contract Hire & Lease Costs,3212,Hire of RCV On hire 5.12.19 (1 week),03/01/2020,0000451506,700.00,Revenue,NAYLORS TRANSPORT (LEYLAND) ltd,00114828
South Ribble Council,http://statistics.data.gov.uk/doc/local-authority/30UN,Area 2 - Waste Transport/Eastern & Central Teams,Contract Hire & Lease Costs,3212,HIRE OF RCV 2.1.20 - 8.1.20,22/01/2020,0000452290,700.00,Revenue,NAYLORS TRANSPORT (LEYLAND) ltd,00114828
South Ribble Council,http://statistics.data.gov.uk/doc/local-authority/30UN,Area 2 - Waste Transport/Eastern & Central Teams,External Contractors Charges,4570,SERVICE WASH PJ62UCL JFC 13746,29/01/2020,0000452468,65.00,Revenue,NAYLORS TRANSPORT (LEYLAND) ltd,00114828
South Ribble Council,http://statistics.data.gov.uk/doc/local-authority/30UN,Area 2 - Waste Transport/Eastern & Central Teams,External Contractors Charges,4570,SERVICE WASH MX04YNL JFC 13747,29/01/2020,0000452468,65.00,Revenue,NAYLORS TRANSPORT (LEYLAND) ltd,00114828
South Ribble Council,http://statistics.data.gov.uk/doc/local-authority/30UN,Area 2 - Waste Transport/Eastern & Central Teams,External Contractors Charges,4570,SERVICE WASH VU11HSZ JFC 13748,29/01/2020,0000452468,65.00,Revenue,NAYLORS TRANSPORT (LEYLAND) ltd,00114828
South Ribble Council,http://statistics.data.gov.uk/doc/local-authority/30UN,Area 2 - Waste Transport/Eastern & Central Teams,External Contractors Charges,4570,SERVICE WASH PJ62UCM JFC 13749,29/01/2020,0000452468,65.00,Revenue,NAYLORS TRANSPORT (LEYLAND) ltd,00114828
South Ribble Council,http://statistics.data.gov.uk/doc/local-authority/30UN,Area 2 - Waste Transport/Eastern & Central Teams,External Contractors Charges,4570,SERVICE WASH RV14DTZ JFC 13750,29/01/2020,0000452468,65.00,Revenue,NAYLORS TRANSPORT (LEYLAND) ltd,00114828
South Ribble Council,http://statistics.data.gov.uk/doc/local-authority/30UN,Area 2 - Waste Transport/Eastern & Central Teams,External Contractors Charges,4570,SERVICE WASH VO65KPX JFC 13751,29/01/2020,0000452468,65.00,Revenue,NAYLORS TRANSPORT (LEYLAND) ltd,00114828
South Ribble Council,http://statistics.data.gov.uk/doc/local-authority/30UN,Area 2 - Waste Transport/Eastern & Central Teams,External Contractors Charges,4570,SERVICE WASH PF18JOV JFC 13752,29/01/2020,0000452468,65.00,Revenue,NAYLORS TRANSPORT (LEYLAND) ltd,00114828
South Ribble Council,http://statistics.data.gov.uk/doc/local-authority/30UN,Area 2 - Waste Transport/Eastern & Central Teams,External Contractors Charges,4570,SERVICE WASH PJ62UCG JFC 13753,29/01/2020,0000452468,65.00,Revenue,NAYLORS TRANSPORT (LEYLAND) ltd,00114828
South Ribble Council,http://statistics.data.gov.uk/doc/local-authority/30UN,Area 2 - Waste Transport/Eastern & Central Teams,External Contractors Charges,4570,SERVICE WASH VO65KPY JFC 13754,29/01/2020,0000452468,65.00,Revenue,NAYLORS TRANSPORT (LEYLAND) ltd,00114828
South Ribble Council,http://statistics.data.gov.uk/doc/local-authority/30UN,Area 2 - Waste Transport/Eastern & Central Teams,External Contractors Charges,4570,SERVICE WASH VO65KPZ JFC 13755,29/01/2020,0000452468,65.00,Revenue,NAYLORS TRANSPORT (LEYLAND) ltd,00114828
South Ribble Council,http://statistics.data.gov.uk/doc/local-authority/30UN,Area 2 - Waste Transport/Eastern & Central Teams,External Contractors Charges,4570,SERVICE WASH YA19NGN JFC 13756,29/01/2020,0000452469,65.00,Revenue,NAYLORS TRANSPORT (LEYLAND) ltd,00114828
South Ribble Council,http://statistics.data.gov.uk/doc/local-authority/30UN,Area 2 - Waste Transport/Eastern & Central Teams,External Contractors Charges,4570,SERVICE WASH YA19NJZ JFC 13757,29/01/2020,0000452469,65.00,Revenue,NAYLORS TRANSPORT (LEYLAND) ltd,00114828
South Ribble Council,http://statistics.data.gov.uk/doc/local-authority/30UN,Area 2 - Waste Transport/Eastern & Central Teams,External Contractors Charges,4570,SERVICE WASH YD19AYK JFC 13758,29/01/2020,0000452469,65.00,Revenue,NAYLORS TRANSPORT (LEYLAND) ltd,00114828
South Ribble Council,http://statistics.data.gov.uk/doc/local-authority/30UN,Area 2 - Waste Transport/Eastern & Central Teams,External Contractors Charges,4570,SERVICE WASH YD19ATK JFC 13759,29/01/2020,0000452469,65.00,Revenue,NAYLORS TRANSPORT (LEYLAND) ltd,00114828
South Ribble Council,http://statistics.data.gov.uk/doc/local-authority/30UN,Area 2 - Waste Transport/Eastern & Central Teams,External Contractors Charges,4570,SERVICE WASH YD19ATZ JFC 13760,29/01/2020,0000452469,65.00,Revenue,NAYLORS TRANSPORT (LEYLAND) ltd,00114828
South Ribble Council,http://statistics.data.gov.uk/doc/local-authority/30UN,Area 2 - Waste Transport/Eastern & Central Teams,External Contractors Charges,4570,SERVICE WASH YD19AUO JFC 13761,29/01/2020,0000452469,65.00,Revenue,NAYLORS TRANSPORT (LEYLAND) ltd,00114828
South Ribble Council,http://statistics.data.gov.uk/doc/local-authority/30UN,Area 2 - Waste Transport/Eastern & Central Teams,External Contractors Charges,4570,SERVICE WASH VA19KOX JFC 13762,29/01/2020,0000452469,65.00,Revenue,NAYLORS TRANSPORT (LEYLAND) ltd,00114828
South Ribble Council,http://statistics.data.gov.uk/doc/local-authority/30UN,Environmental Health,Contractors Charges 5,5310,Funeral for NAME REDACTED Per NAME REDACTED.,31/01/2020,0000452519,"1,250.00",Revenue,NAME REDACTED,130840
South Ribble Council,http://statistics.data.gov.uk/doc/local-authority/30UN,Democratic Services,Other Misc,4421,Use of the venue for the Parliamentary Election on 12 December 2019. ,08/01/2020,0000451778,264.25,Revenue,NEW LONGTON VILLAGE HALL,00080088
South Ribble Council,http://statistics.data.gov.uk/doc/local-authority/30UN,Neighbourhood Admin & Support,Materials General,4040,10 x @ 42.84 - 4 ROW CHANNEL BRUSH - C/W 4 NUTS/BOLTS - 835/66,29/01/2020,0000452374,449.96,Revenue,NORTHERN MUNICIPAL SPARES LTD,00117061
South Ribble Council,http://statistics.data.gov.uk/doc/local-authority/30UN,Property Services,Operational Furniture & Equip,4010,Please supply 30 x meeting tables to the civic centre as per quotation ref 55318,29/01/2020,0000452550,"5,175.00",Revenue,Northern Storage & Interiors Ltd,132814
South Ribble Council,http://statistics.data.gov.uk/doc/local-authority/30UN,Area 1 - Penwortham Western Parishes,Professional Fees,4514,DEPLOYMENT OF OFFICERS DECEMBER 2019,24/01/2020,0000452155,"1,318.64",Revenue,NSL LTD,00116868
South Ribble Council,http://statistics.data.gov.uk/doc/local-authority/30UN,Area 1 - Penwortham Western Parishes,Other Misc,4855,CASH COLLECTIONS AND RINGO TRANSACTIONS DECEMBER 2019,24/01/2020,0000452155,192.08,Revenue,NSL LTD,00116868
South Ribble Council,http://statistics.data.gov.uk/doc/local-authority/30UN,Area 1 - Penwortham Western Parishes,Other Misc,4855,RINGO CONVENIENCE CHARGE DECEMBER 2019,24/01/2020,0000452155,193.35,Revenue,NSL LTD,00116868
South Ribble Council,http://statistics.data.gov.uk/doc/local-authority/30UN,Information Services,Peripherals,4247,Combined Services for period 01/01/20 - 31/03/20,08/01/2020,0000451957,"4,945.15",Revenue,NVIRON LTD,00028781
South Ribble Council,http://statistics.data.gov.uk/doc/local-authority/30UN,Information Services,Peripherals,4247,Combined Services for period 01/01/20 - 31/03/20,08/01/2020,0000451958,"2,542.72",Revenue,NVIRON LTD,00028781
South Ribble Council,http://statistics.data.gov.uk/doc/local-authority/30UN,Information Services,Peripherals,4247,"IDENTIKEY Authentication Server Gold Edition Maintenance for period 24/01/20 - 23/01/21, as per quote",22/01/2020,0000452334,"1,852.50",Revenue,NVIRON LTD,00028781
South Ribble Council,http://statistics.data.gov.uk/doc/local-authority/30UN,Housing,Cap Grant- Improve Grants,C570,DFG WORKS TO BATHROOM AT NAME REDACTED AS PER QUOTE SUPPIED FOR SRBC PLANS- CUSTOMER TO PAY DIFFERENCE,08/01/2020,0000452022,"5,000.00",Revenue,Ogs & Sons Ltd,132808
South Ribble Council,http://statistics.data.gov.uk/doc/local-authority/30UN,Property Services,Energy Costs,2303,18/6/19 to 19 12/19,15/01/2020,0000452087,286.16,Revenue,OPUS ENERGY LIMITED,130898
South Ribble Council,http://statistics.data.gov.uk/doc/local-authority/30UN,HR & Communications,Payroll Suspense,1731,250 OF LOVE TO SHOP VOUCHERS - NAME REDACTED,03/01/2020,0000451746,250.00,Revenue,Park Retail Ltd t/a Love2Shop Business Services,133000
South Ribble Council,http://statistics.data.gov.uk/doc/local-authority/30UN,HR & Communications,Payroll Suspense,1731,delivery,03/01/2020,0000451746,7.50,Revenue,Park Retail Ltd t/a Love2Shop Business Services,133000
South Ribble Council,http://statistics.data.gov.uk/doc/local-authority/30UN,Property Services,Cleaning and Domestic Supplies,2711,"Leyland market:- 10 x box toilet rolls, 5ltr handwash, 4 x box hand towels, 2 5ltr multi purpose cleaner, 12  1ltr toilet cleaner, 6 x boxes of binbags",08/01/2020,0000451990,265.62,Revenue,Pattersons (Bristol) Ltd,132621
South Ribble Council,http://statistics.data.gov.uk/doc/local-authority/30UN,Property Services,Rep & Maint Premises,2020,For the works to be completed in the Labour/Cabinet/Leaders office. (Installation of window/ internal door/ Painting off all three)quote QU - 0039 ,31/01/2020,0000452119,"9,998.00",Revenue,PDP PROPERTY SERVICES LTD,00106975
South Ribble Council,http://statistics.data.gov.uk/doc/local-authority/30UN,Property Services,Rep & Maint Premises,2020,Please attend Civic centre and supply and fit metal studwork to existing mdf room on 1st floor and soundproofing as per quote QU - 0069,15/01/2020,0000452120,"1,935.00",Revenue,PDP PROPERTY SERVICES LTD,00106975
South Ribble Council,http://statistics.data.gov.uk/doc/local-authority/30UN,Property Services,Rep & Maint Premises,2020,To provide decorating services for the citizens advice room at the civic centre as per quotation QU-0117,15/01/2020,0000452121,645.00,Revenue,PDP PROPERTY SERVICES LTD,00106975
South Ribble Council,http://statistics.data.gov.uk/doc/local-authority/30UN,Property Services,Rep & Maint Premises,2020,"To uplift, dispose of carpet tiles and supply and fit new to the labour room at the civic centre as per quotation.",15/01/2020,0000452122,"1,700.00",Revenue,PDP PROPERTY SERVICES LTD,00106975
South Ribble Council,http://statistics.data.gov.uk/doc/local-authority/30UN,Property Services,Rep & Maint Premises,2020,"Supply / erect scaffolding to access the valley roof to find where water is entering the building at Avacab, Moss Side Depot as per quote QU-0119",22/01/2020,0000452378,260.00,Revenue,PDP PROPERTY SERVICES LTD,00106975
South Ribble Council,http://statistics.data.gov.uk/doc/local-authority/30UN,Democratic Services,Other Misc,4421,Use of the venue for the Parliamentary Election on 12 December 2019.  ,08/01/2020,0000451834,250.00,Revenue,Penwortham United Reform Church,131971
South Ribble Council,http://statistics.data.gov.uk/doc/local-authority/30UN,Information Services,Peripherals,4243,"20 x Microsoft Windows 7 Extended Support 2020 for Microsoft 365 - Licence @ 24.10 each, as per quote 01150999",17/01/2020,0000452146,482.00,Revenue,PHOENIX SOFTWARE LTD,00064279
South Ribble Council,http://statistics.data.gov.uk/doc/local-authority/30UN,Information Services,Peripherals,4243,"5 x Visio Online Plan 2 Shared Server All Languages Subscription Licence Per User - Licence for period 01/04/20 - 31/03/21, quote 01152307",17/01/2020,0000452148,564.00,Revenue,PHOENIX SOFTWARE LTD,00064279
South Ribble Council,http://statistics.data.gov.uk/doc/local-authority/30UN,Information Services,Peripherals,4243,"Microsoft Agreement for period 01/04/20 - 31/03/21, as per quote 01152307",17/01/2020,0000452149,"79,127.92",Revenue,PHOENIX SOFTWARE LTD,00064279
South Ribble Council,http://statistics.data.gov.uk/doc/local-authority/30UN,Information Services,Peripherals,4243,"Microsoft Agreement for period 01/04/20 - 31/03/21, as per quote 01152306",17/01/2020,0000452150,"11,783.99",Revenue,PHOENIX SOFTWARE LTD,00064279
South Ribble Council,http://statistics.data.gov.uk/doc/local-authority/30UN,Property Services,Operational Furniture & Equip,4012,"2019 / 2020 contract for the provision of sanitary services at Moss Side Depot, Bison Place, Leyland",10/01/2020,0000452033,408.27,Revenue,PHS GROUP PLC,00031309
South Ribble Council,http://statistics.data.gov.uk/doc/local-authority/30UN,Property Services,Operational Furniture & Equip,4012,2019 / 2020 contract for the provision of sanitary services at the Civic Centre,10/01/2020,0000452034,982.31,Revenue,PHS GROUP PLC,00031309
South Ribble Council,http://statistics.data.gov.uk/doc/local-authority/30UN,HR & Communications,Training Expense-Course Fees,1405,HAVING CHALLENGING CONVERSATIONS COURSE DELIVERED BY POTENTIAL UNEARTHED ON 16 JANUARY 2020.,29/01/2020,0000452483,990.00,Revenue,POTENTIAL UNEARTHED LTD,132918
South Ribble Council,http://statistics.data.gov.uk/doc/local-authority/30UN,Information Services,Stationery,4133,"50,000  sheets Evolution Everyday A4 80gm 1000 sheets  Premier Elements Fire A4 white card 200gsm",15/01/2020,0000452190,310.10,Revenue,PREMIER PAPER GROUP LTD,00022606
South Ribble Council,http://statistics.data.gov.uk/doc/local-authority/30UN,Information Services,Stationery,4133,"50,000 sheets Evolution Everyday A4 80gm 2500 sheets Papago Pastel Green A4 80gm 2500 sheets Papago Papago Blue A4 80gm",29/01/2020,0000452499,320.50,Revenue,PREMIER PAPER GROUP LTD,00022606
South Ribble Council,http://statistics.data.gov.uk/doc/local-authority/30UN,Area 2 - Waste Transport/Eastern & Central Teams,Materials General,4040,TR213,10/01/2020,0000451898,584.48,Revenue,PRESTON TYRE SPECIALISTS,00109516
South Ribble Council,http://statistics.data.gov.uk/doc/local-authority/30UN,Area 2 - Waste Transport/Eastern & Central Teams,External Contractors Charges,4570,SPEC REPAIR - RV14DTZ - JFC13916,24/01/2020,0000452284,537.06,Revenue,PRESTON TYRE SPECIALISTS,00109516
South Ribble Council,http://statistics.data.gov.uk/doc/local-authority/30UN,Area 2 - Waste Transport/Eastern & Central Teams,Materials General,4040,TR215,31/01/2020,0000452510,285.05,Revenue,PRESTON TYRE SPECIALISTS,00109516
South Ribble Council,http://statistics.data.gov.uk/doc/local-authority/30UN,Democratic Services,Other Misc,4421,CORRESPONDING NUMBERS LISTS - COUPE GREEN AND GREGSON LANE BY-ELECTION - ORDER NUMBER:  6121,08/01/2020,0000451804,357.00,Revenue,PRINT IMAGE NETWORK LTD,00089199
South Ribble Council,http://statistics.data.gov.uk/doc/local-authority/30UN,Democratic Services,Other Misc,4421,135 X LARGE PRINT UKPGE BALLOT PAPERS - JOB NO 6538,08/01/2020,0000451826,520.00,Revenue,PRINT IMAGE NETWORK LTD,00089199
South Ribble Council,http://statistics.data.gov.uk/doc/local-authority/30UN,Democratic Services,Other Misc,4423,ARTWORK FOR POLLCARDS,17/01/2020,0000452116,293.34,Revenue,PRINT IMAGE NETWORK LTD,00089199
South Ribble Council,http://statistics.data.gov.uk/doc/local-authority/30UN,Democratic Services,Other Misc,4421,ARTWORK FOR POLLING STATIONS,17/01/2020,0000452116,293.33,Revenue,PRINT IMAGE NETWORK LTD,00089199
South Ribble Council,http://statistics.data.gov.uk/doc/local-authority/30UN,Democratic Services,Other Misc,4422,ARTWORK FOR POSTAL VOTES,17/01/2020,0000452116,293.33,Revenue,PRINT IMAGE NETWORK LTD,00089199
South Ribble Council,http://statistics.data.gov.uk/doc/local-authority/30UN,Democratic Services,Other Misc,4422,APPROXIMATELY 185 X UKPGE OVERSEAS POSTAL VOTE PACKS (REF 6344),17/01/2020,0000452291,"2,287.00",Revenue,PRINT IMAGE NETWORK LTD,00089199
South Ribble Council,http://statistics.data.gov.uk/doc/local-authority/30UN,Democratic Services,Other Misc,4421,2472 X UKPGE CORRESPONDING NUMBER LISTS - JOB NO 6516,17/01/2020,0000452292,"1,040.27",Revenue,PRINT IMAGE NETWORK LTD,00089199
South Ribble Council,http://statistics.data.gov.uk/doc/local-authority/30UN,Homelessness,Contractors Charges 5,5313,void loss for 1.7.19-6.10.19,03/01/2020,0000451984,"3,636.83",Revenue,PROGRESS HOUSING GRP ref:DNSOU001,00030135
South Ribble Council,http://statistics.data.gov.uk/doc/local-authority/30UN,Property Services,Capital Expenditure,C230,"LABOUR Please undertake works at North Lodge, Worden Park as per quotation ref LRS Q2311",29/01/2020,0000452551,400.00,Revenue,PSR & Sons Joiners & Building Contractors,132887
South Ribble Council,http://statistics.data.gov.uk/doc/local-authority/30UN,Property Services,Capital Expenditure,C230,remodeling fan,29/01/2020,0000452551,130.00,Revenue,PSR & Sons Joiners & Building Contractors,132887
South Ribble Council,http://statistics.data.gov.uk/doc/local-authority/30UN,Property Services,Capital Expenditure,C230,Materials,29/01/2020,0000452551,"1,905.00",Revenue,PSR & Sons Joiners & Building Contractors,132887
South Ribble Council,http://statistics.data.gov.uk/doc/local-authority/30UN,Property Services,Rep & Maint Premises,2020,LABOURPlease attend Civic Centre and carry out works as per quote Q2819 for NAME REDACTED,29/01/2020,0000452553,405.00,Revenue,PSR & Sons Joiners & Building Contractors,132887
South Ribble Council,http://statistics.data.gov.uk/doc/local-authority/30UN,Property Services,Rep & Maint Premises,2020,materials,29/01/2020,0000452553,"1,250.00",Revenue,PSR & Sons Joiners & Building Contractors,132887
South Ribble Council,http://statistics.data.gov.uk/doc/local-authority/30UN,Property Services,Professional Fees,4510,"Output Purcell,	Project team workshop, Adjacency studies for advanced option 01, Schedule of accom., series of hand drawn, coloured plans 1:2",08/01/2020,0000451877,"2,000.00",Revenue,Purcell Architecture Limited,132602
South Ribble Council,http://statistics.data.gov.uk/doc/local-authority/30UN,Property Services,Professional Fees,4510,"Output Purcell,	Project team workshop, Adjacency studies for advanced option 01, Schedule of accom., series of hand drawn, coloured plans 1:2",08/01/2020,0000451987,"5,700.00",Revenue,Purcell Architecture Limited,132602
South Ribble Council,http://statistics.data.gov.uk/doc/local-authority/30UN,Information Services,Postage,4292,Franking  Funds + meter reset fee + Royal Mail underpayment charge 18/11 to 20/12/19,10/01/2020,0000452113,"9,105.11",Revenue,Purchase Power,00093923
South Ribble Council,http://statistics.data.gov.uk/doc/local-authority/30UN,Property Services,Rep & Maint Premises,2020,Order to cover for the cancellation of the prev. order - Middleforth Ind Est to clear ivy off rear of units - scaffolding tower for access to roof and skip,15/01/2020,0000451941,240.00,Revenue,RED ROSE BUILDING MAINTENANCE,00085410
South Ribble Council,http://statistics.data.gov.uk/doc/local-authority/30UN,Property Services,Rep & Maint Premises,2020,materials,15/01/2020,0000451941,450.00,Revenue,RED ROSE BUILDING MAINTENANCE,00085410
South Ribble Council,http://statistics.data.gov.uk/doc/local-authority/30UN,Property Services,Rep & Maint Premises,2020,"Penwortham Holme - quote 6th Jan 2020 - Dig off grass and soil, dig off approx. 300 mm of top soil. Terran/ timber edging and then to infill ",22/01/2020,0000452278,"1,000.00",Revenue,RED ROSE BUILDING MAINTENANCE,00085410
South Ribble Council,http://statistics.data.gov.uk/doc/local-authority/30UN,Property Services,Rep & Maint Premises,2020,MATERIALS,22/01/2020,0000452278,"1,200.00",Revenue,RED ROSE BUILDING MAINTENANCE,00085410
South Ribble Council,http://statistics.data.gov.uk/doc/local-authority/30UN,Development Enterprise & Comm Mgnt,Other Misc,485A,Rental costs for storage unit for Economic Development C11 -35 square foot self storage unit. 3/12/2019  - 30/3/2020 269.28 + VAT,29/01/2020,0000452332,269.28,Revenue,Red Rose Self Storage Limited,132014
South Ribble Council,http://statistics.data.gov.uk/doc/local-authority/30UN,Information Services,Peripherals,4248,Annual RIAMS subscription for period 05/01/20 - 04/01/21,29/01/2020,0000452547,"3,060.00",Revenue,RHE LIMITED,00120207
South Ribble Council,http://statistics.data.gov.uk/doc/local-authority/30UN,Area 2 - Waste Transport/Eastern & Central Teams,Materials General,4040,LED BAR BEACON FV69HLD JFC 13779,03/01/2020,0000451512,135.00,Revenue,RIBBLESDALE AUTO ELECTRICS 1992 LTD,00033129
South Ribble Council,http://statistics.data.gov.uk/doc/local-authority/30UN,Area 2 - Waste Transport/Eastern & Central Teams,Materials General,4040,LED BAR BEACON FV69GZJ JFC 13786,03/01/2020,0000451512,135.00,Revenue,RIBBLESDALE AUTO ELECTRICS 1992 LTD,00033129
South Ribble Council,http://statistics.data.gov.uk/doc/local-authority/30UN,Legal,Legal,4821,PROVIDING ADVICE IN RELATION TO THE INVESTIGATION OF NAME REDACTED SOUTH RIBBLE BOROUGH COUNCIL.,17/01/2020,0000452162,"4,379.40",Revenue,RICHARD PENN CONSULTANCY,133008
South Ribble Council,http://statistics.data.gov.uk/doc/local-authority/30UN,Information Services,Stationery,413A,,17/01/2020,0000452195,119.71,Revenue,RICOH (UK) LTD,00082976
South Ribble Council,http://statistics.data.gov.uk/doc/local-authority/30UN,Information Services,Lease Rental Charges,4036,,17/01/2020,0000452195,333.20,Revenue,RICOH (UK) LTD,00082976
South Ribble Council,http://statistics.data.gov.uk/doc/local-authority/30UN,HR & Communications,Payroll Suspense,1741,MEMBERSHIP SUBSCRIPTION FOR NAME REDACTED - 1 JANUARY - 31 DECEMBER 2020,29/01/2020,0000452488,561.00,Revenue,RICS,00033307
South Ribble Council,http://statistics.data.gov.uk/doc/local-authority/30UN,Neighbourhood Admin & Support,Operational Furniture & Equip,4010, BAG LOOP - B05DL110,15/01/2020,0000452063,270.00,Revenue,ROBERT ACTON PRODUCTS DEVELOPMENTS,00014452
South Ribble Council,http://statistics.data.gov.uk/doc/local-authority/30UN,Property Services,Other Misc,485C,serv charge yr-end 31/12/20,29/01/2020,0000452357,400.00,Revenue,ROUNDHOUSE PROPERTIES LTD,131973
South Ribble Council,http://statistics.data.gov.uk/doc/local-authority/30UN,Property Services,Water Charges,2511,service charge for year 2020,29/01/2020,0000452358,400.00,Revenue,ROUNDHOUSE PROPERTIES LTD,131973
South Ribble Council,http://statistics.data.gov.uk/doc/local-authority/30UN,Property Services,Other Misc,485C,serv charge period end 31/12/20,29/01/2020,0000452359,400.00,Revenue,ROUNDHOUSE PROPERTIES LTD,131973
South Ribble Council,http://statistics.data.gov.uk/doc/local-authority/30UN,Property Services,Other Misc,485C,serv charge period end31/12/20,29/01/2020,0000452359,400.00,Revenue,ROUNDHOUSE PROPERTIES LTD,131973
South Ribble Council,http://statistics.data.gov.uk/doc/local-authority/30UN,Property Services,Other Misc,485C,serv charge period end 31/12/20,29/01/2020,0000452359,400.00,Revenue,ROUNDHOUSE PROPERTIES LTD,131973
South Ribble Council,http://statistics.data.gov.uk/doc/local-authority/30UN,Property Services,Other Misc,485C,serv chrge period end 31/12/20,29/01/2020,0000452359,400.00,Revenue,ROUNDHOUSE PROPERTIES LTD,131973
South Ribble Council,http://statistics.data.gov.uk/doc/local-authority/30UN,Property Services,Other Misc,485C,serv chrge period end 31/12/20,29/01/2020,0000452359,400.00,Revenue,ROUNDHOUSE PROPERTIES LTD,131973
South Ribble Council,http://statistics.data.gov.uk/doc/local-authority/30UN,Democratic Services,Other Misc,4422,RESPONSE PLUS SERVICE - PARLIAMENTARY POSTAL VOTE RETURNS,17/01/2020,0000451756,"3,714.20",Revenue,ROYAL MAIL GROUP PLC,00033543
South Ribble Council,http://statistics.data.gov.uk/doc/local-authority/30UN,Democratic Services,Other Misc,4422,RESPONSE PLUS SERVICE FOR PARLIAMENTARY ELECTION 2019,08/01/2020,0000451823,"1,278.77",Revenue,ROYAL MAIL GROUP PLC,00033543
South Ribble Council,http://statistics.data.gov.uk/doc/local-authority/30UN,Democratic Services,Other Misc,4422,"998 X BUSINESS MAIL ADVANCED 1C UNSORTED, 8 X INTERNATIONAL STANDARD ON ACC., 1 X INTERNATIONAL STANDARD ON ACC.",08/01/2020,0000451825,"1,695.90",Revenue,ROYAL MAIL GROUP PLC,00033543
South Ribble Council,http://statistics.data.gov.uk/doc/local-authority/30UN,Democratic Services,Other Misc,4422,exempt,08/01/2020,0000451825,12.00,Revenue,ROYAL MAIL GROUP PLC,00033543
South Ribble Council,http://statistics.data.gov.uk/doc/local-authority/30UN,Democratic Services,Other Misc,4422,zero rate,08/01/2020,0000451825,2.20,Revenue,ROYAL MAIL GROUP PLC,00033543
South Ribble Council,http://statistics.data.gov.uk/doc/local-authority/30UN,Information Services,Postage,4295,,08/01/2020,0000452010,464.85,Revenue,ROYAL MAIL GROUP PLC,00033543
South Ribble Council,http://statistics.data.gov.uk/doc/local-authority/30UN,Information Services,Postage,4295,,08/01/2020,0000452010,-30.00,Revenue,ROYAL MAIL GROUP PLC,00033543
South Ribble Council,http://statistics.data.gov.uk/doc/local-authority/30UN,Democratic Services,Other Misc,4422,Postage Electoral Services,31/01/2020,0000452060,4.40,Revenue,ROYAL MAIL GROUP PLC,00033543
South Ribble Council,http://statistics.data.gov.uk/doc/local-authority/30UN,Democratic Services,Other Misc,4422,Postage Elections,31/01/2020,0000452060,"26,677.19",Revenue,ROYAL MAIL GROUP PLC,00033543
South Ribble Council,http://statistics.data.gov.uk/doc/local-authority/30UN,Democratic Services,Other Misc,4422,Postage Elections,31/01/2020,0000452060,117.00,Revenue,ROYAL MAIL GROUP PLC,00033543
South Ribble Council,http://statistics.data.gov.uk/doc/local-authority/30UN,Information Services,Postage,4295,,22/01/2020,0000452393,425.83,Revenue,ROYAL MAIL GROUP PLC,00033543
South Ribble Council,http://statistics.data.gov.uk/doc/local-authority/30UN,Property Services,Professional Fees,4510,"Provision of services to SRBC for the mgmt of the asset management portfolio, McKenzie arms business case and review of the asset portfolio.",29/01/2020,0000452384,"18,159.00",Revenue,Sanderson Weatherall LLP,132534
South Ribble Council,http://statistics.data.gov.uk/doc/local-authority/30UN,Property Services,Energy Costs,2303,14/8/19 to 30/9/19,03/01/2020,0000451757,"1,477.57",Revenue,SCOTTISH HYDRO ELECTRIC,130051
South Ribble Council,http://statistics.data.gov.uk/doc/local-authority/30UN,Property Services,Energy Costs,2307,CCL,03/01/2020,0000451757,96.85,Revenue,SCOTTISH HYDRO ELECTRIC,130051
South Ribble Council,http://statistics.data.gov.uk/doc/local-authority/30UN,Property Services,Energy Costs,2303,28/9/19 to 18/11/19,08/01/2020,0000451950,285.97,Revenue,SCOTTISH HYDRO ELECTRIC,130051
South Ribble Council,http://statistics.data.gov.uk/doc/local-authority/30UN,Property Services,Energy Costs,2303,2/11/19 to 1/12/19,08/01/2020,0000451951,276.78,Revenue,SCOTTISH HYDRO ELECTRIC,130051
South Ribble Council,http://statistics.data.gov.uk/doc/local-authority/30UN,Property Services,Energy Costs,2307,CCL,08/01/2020,0000451951,11.70,Revenue,SCOTTISH HYDRO ELECTRIC,130051
South Ribble Council,http://statistics.data.gov.uk/doc/local-authority/30UN,Property Services,Energy Costs,2303,2/12/19 to 1/1/20,17/01/2020,0000452192,281.04,Revenue,SCOTTISH HYDRO ELECTRIC,130051
South Ribble Council,http://statistics.data.gov.uk/doc/local-authority/30UN,Property Services,Energy Costs,2307,CCL,17/01/2020,0000452192,11.88,Revenue,SCOTTISH HYDRO ELECTRIC,130051
South Ribble Council,http://statistics.data.gov.uk/doc/local-authority/30UN,Information Services,Peripherals,4246,"Sophos Premium Support 237.20 and Sophos Web Protection for period 29/01/20 - 28/01/21, as per quote Q-10183-1",17/01/2020,0000452213,893.40,Revenue,SecureData Europe Ltd,132381
South Ribble Council,http://statistics.data.gov.uk/doc/local-authority/30UN,Revenues Plus,Balance Sheet,0001,,03/01/2020,0000451868,"2,636.95",Revenue,Security With Style (Windows) Limited,133013
South Ribble Council,http://statistics.data.gov.uk/doc/local-authority/30UN,Property Services,Consultancy Fees,4536,R & M for 2019/2020,08/01/2020,0000451622,"43,446.00",Revenue,SERCO LEISURE (OP) LTD,00094906
South Ribble Council,http://statistics.data.gov.uk/doc/local-authority/30UN,Information Services,Professional Fees,4520,Shredding of Confidential Waste 2019/20,29/01/2020,0000452527,506.52,Revenue,SHRED-IT LTD,00109134
South Ribble Council,http://statistics.data.gov.uk/doc/local-authority/30UN,Area 2 - Waste Transport/Eastern & Central Teams,Advertising,4842,Supply & Fit of Info banners for x3 RCVs as per quote DT8903-2,10/01/2020,0000452028,735.98,Revenue,SIGNS PRESTON LTD T/A SIGNS EXPRESS CENTRAL LANCS,131706
South Ribble Council,http://statistics.data.gov.uk/doc/local-authority/30UN,Property Services,Advertising,4842,Provision of  Christmas Dinner for the volunteer staff  at South Ribble Museum & Exhibition Centre. 18/12/2019 C40 at 16  = 640. ,15/01/2020,0000451876,598.13,Revenue,SLATERS CATERING LTD,131032
South Ribble Council,http://statistics.data.gov.uk/doc/local-authority/30UN,Information Services,Peripherals,4243,50 x Egres Business Standard (Email Encryption) 50 x Risk-base Protection 1 x Business Standard (Risk-based Protection) Deployment Pack,10/01/2020,0000452039,"4,422.50",Revenue,SOFTCAT LIMITED,130963
South Ribble Council,http://statistics.data.gov.uk/doc/local-authority/30UN,Information Services,Peripherals,4248,13 x Acrobat for Teams renewal,24/01/2020,0000452410,"1,605.01",Revenue,SOFTCAT LIMITED,130963
South Ribble Council,http://statistics.data.gov.uk/doc/local-authority/30UN,Information Services,Peripherals,4248,Dreamweaver CC for Teams,24/01/2020,0000452410,282.49,Revenue,SOFTCAT LIMITED,130963
South Ribble Council,http://statistics.data.gov.uk/doc/local-authority/30UN,Information Services,Peripherals,4248,InDesign CC for Teams,24/01/2020,0000452410,282.49,Revenue,SOFTCAT LIMITED,130963
South Ribble Council,http://statistics.data.gov.uk/doc/local-authority/30UN,Information Services,Peripherals,4248,Photoshop CC for Teams. As per quote ref. OVREEAO1UDYR V3,24/01/2020,0000452410,282.49,Revenue,SOFTCAT LIMITED,130963
South Ribble Council,http://statistics.data.gov.uk/doc/local-authority/30UN,Democratic Services,Other Misc,4424,USE OF THE TENNIS & FITNESS CENTRE FOR THE UKPGE ELECTION COUNT ON 12-13 DECEMBER 2019,31/01/2020,0000452309,"1,532.76",Revenue,SOUTH RIBBLE COMMUNITY LEISURE LTD,00094210
South Ribble Council,http://statistics.data.gov.uk/doc/local-authority/30UN,Property Services,Consultancy Fees,4532,Leisure Services Fee 2019/2020,31/01/2020,0000452500,"22,748.00",Revenue,SOUTH RIBBLE COMMUNITY LEISURE LTD,00094210
South Ribble Council,http://statistics.data.gov.uk/doc/local-authority/30UN,Area 2 - Waste Transport/Eastern & Central Teams,Materials General,4040,10 X ECCENTRIC BUSH BOLT BIN 1124,10/01/2020,0000451943,86.10,Revenue,SPALDINGS,00070849
South Ribble Council,http://statistics.data.gov.uk/doc/local-authority/30UN,Area 2 - Waste Transport/Eastern & Central Teams,Materials General,4040,6 X ROLLER ADJUSTER BIN 1117,10/01/2020,0000451943,60.00,Revenue,SPALDINGS,00070849
South Ribble Council,http://statistics.data.gov.uk/doc/local-authority/30UN,Area 2 - Waste Transport/Eastern & Central Teams,Materials General,4040,3 X ROLLER PIVOT BOLT BIN 1122,10/01/2020,0000451943,30.00,Revenue,SPALDINGS,00070849
South Ribble Council,http://statistics.data.gov.uk/doc/local-authority/30UN,Area 2 - Waste Transport/Eastern & Central Teams,Materials General,4040,6 X LEVER ARM BUSH BIN 1047,10/01/2020,0000451943,29.22,Revenue,SPALDINGS,00070849
South Ribble Council,http://statistics.data.gov.uk/doc/local-authority/30UN,Area 2 - Waste Transport/Eastern & Central Teams,Materials General,4040,10 X ROLLER ADAPTOR BUSH BIN 1048,10/01/2020,0000451943,95.00,Revenue,SPALDINGS,00070849
South Ribble Council,http://statistics.data.gov.uk/doc/local-authority/30UN,Area 2 - Waste Transport/Eastern & Central Teams,Materials General,4040,5 X DEFLECTOR FLAP BIN 1049,10/01/2020,0000451943,70.00,Revenue,SPALDINGS,00070849
South Ribble Council,http://statistics.data.gov.uk/doc/local-authority/30UN,Area 2 - Waste Transport/Eastern & Central Teams,Operational Furniture & Equip,4010,Chain Sling - 3 legged 07656,22/01/2020,0000452260,105.50,Revenue,SPALDINGS,00070849
South Ribble Council,http://statistics.data.gov.uk/doc/local-authority/30UN,Area 2 - Waste Transport/Eastern & Central Teams,Operational Furniture & Equip,4010,Sling adjuster 19297,22/01/2020,0000452260,36.81,Revenue,SPALDINGS,00070849
South Ribble Council,http://statistics.data.gov.uk/doc/local-authority/30UN,Area 2 - Waste Transport/Eastern & Central Teams,Operational Furniture & Equip,4010,D shackles 07686,22/01/2020,0000452260,29.00,Revenue,SPALDINGS,00070849
South Ribble Council,http://statistics.data.gov.uk/doc/local-authority/30UN,Area 2 - Waste Transport/Eastern & Central Teams,Operational Furniture & Equip,4010,Sling 2.5 metre 17600,22/01/2020,0000452260,49.99,Revenue,SPALDINGS,00070849
South Ribble Council,http://statistics.data.gov.uk/doc/local-authority/30UN,Area 2 - Waste Transport/Eastern & Central Teams,Operational Furniture & Equip,4010,Sling 0.75 metre 18088,22/01/2020,0000452260,29.90,Revenue,SPALDINGS,00070849
South Ribble Council,http://statistics.data.gov.uk/doc/local-authority/30UN,Democratic Services,Other Misc,4421,Use of the venue for the Parliamentary Election on 12 December 2019.  ,31/01/2020,0000452485,396.00,Revenue,ST AMBROSE CHURCH HALL,00081540
South Ribble Council,http://statistics.data.gov.uk/doc/local-authority/30UN,Shared Financial Services,Balance Sheet,0030,monthly deds from payroll,08/01/2020,0000451993,403.62,Revenue,ST CATHERINES HOSPICE PROMOTIONS LTD,00057749
South Ribble Council,http://statistics.data.gov.uk/doc/local-authority/30UN,Democratic Services,External Contractors Charges,4575,"PROVIDE 200 HOTPOT AND 50 BUTTER PIES, PEAS AND GRAVY PLUS BEETROOT AND RED CABBAGE @ 7.50 PP AS DISCUSSED.   ",17/01/2020,0000452310,"1,562.50",Revenue,St Catherines Social Enterprise Ltd,132366
South Ribble Council,http://statistics.data.gov.uk/doc/local-authority/30UN,Neighbourhood Admin & Support,Vehicle Running Costs,3132,10000LT X DIESEL (TANK 1) @ 100.88 PPL,08/01/2020,0000451975,"10,266.00",Revenue,Standard Fuel Oils LtdMain,131556
South Ribble Council,http://statistics.data.gov.uk/doc/local-authority/30UN,Neighbourhood Admin & Support,Vehicle Running Costs,3132,"15,000 LITRES DIESEL @104.48PPL",15/01/2020,0000452052,"13,793.45",Revenue,Standard Fuel Oils LtdMain,131556
South Ribble Council,http://statistics.data.gov.uk/doc/local-authority/30UN,Neighbourhood Admin & Support,Vehicle Running Costs,3132,17000LT X DIESEL (TANK 1) @ 104.14 PPL,29/01/2020,0000452389,"18,388.00",Revenue,Standard Fuel Oils LtdMain,131556
South Ribble Council,http://statistics.data.gov.uk/doc/local-authority/30UN,Neighbourhood Admin & Support,Vehicle Running Costs,3132,15000LT X DIESEL (TANK 1) @ 101.62 PPL,31/01/2020,0000452560,"15,447.26",Revenue,Standard Fuel Oils LtdMain,131556
South Ribble Council,http://statistics.data.gov.uk/doc/local-authority/30UN,HR & Communications,Capital Expenditure,C230,DESIGN AND PRODUCTION OF OUR BIG TREE PLAT `BAROMETER` - SPECIFICATION AS DISCUSSED,31/01/2020,0000452398,575.00,Revenue,STONE CREATE LTD,130896
South Ribble Council,http://statistics.data.gov.uk/doc/local-authority/30UN,Democratic Services,External Contractors Charges,4575,TO SUPPLY 77 MEALS AND 6 BASIC MEALS FOR THE MAYOR`S BANQUET ON FRIDAY 6/12/2019 AT THE CIVIC CENTRE AS DISCUSSED,08/01/2020,0000451782,"1,484.50",Revenue,Style Catering,131958
South Ribble Council,http://statistics.data.gov.uk/doc/local-authority/30UN,Area 2 - Waste Transport/Eastern & Central Teams,Materials General,4040,1 X SENSOR TEL 2387 VO65KRE JFC 13788,10/01/2020,0000451911,298.11,Revenue,Taylor Enginering & Fabrications Ltd,132560
South Ribble Council,http://statistics.data.gov.uk/doc/local-authority/30UN,Area 2 - Waste Transport/Eastern & Central Teams,Materials General,4040,START SENSOR VX18KLC JFC 13851,08/01/2020,0000451977,309.16,Revenue,Taylor Enginering & Fabrications Ltd,132560
South Ribble Council,http://statistics.data.gov.uk/doc/local-authority/30UN,Area 2 - Waste Transport/Eastern & Central Teams,External Contractors Charges,4570,Calibration Fee for Brake roller and headlamp tester,03/01/2020,0000451475,437.00,Revenue,Tecalemit Garage Equipment Company Limited,132135
South Ribble Council,http://statistics.data.gov.uk/doc/local-authority/30UN,Information Services,Peripherals,4246,Retainer for Services for 4 days per month for 6 months @ 650 per day,08/01/2020,0000451921,"2,600.00",Revenue,TechAlign,132535
South Ribble Council,http://statistics.data.gov.uk/doc/local-authority/30UN,Regeneration,Professional Fees,4510,Maintenance of bee hives at Carr Wood - this order is to cover until March 2020,10/01/2020,0000452053,450.00,Revenue,The Bee centre,132104
South Ribble Council,http://statistics.data.gov.uk/doc/local-authority/30UN,Information Services,Peripherals,4247,"TNP Professional Services - Consultancy for investigation/config of IP phones, as per quote SQ106202",03/01/2020,0000451886,975.00,Revenue,The Networking People (TNP) Ltd,132331
South Ribble Council,http://statistics.data.gov.uk/doc/local-authority/30UN,Planning,Agency Fees,1121,Agency Worker NAME REDACTED - Enforcement,03/01/2020,0000451684,"1,665.00",Revenue,The Oyster Partnership,132919
South Ribble Council,http://statistics.data.gov.uk/doc/local-authority/30UN,Planning,Agency Fees,1121,Agency Worker NAME REDACTED - Enforcement,03/01/2020,0000451685,"1,327.50",Revenue,The Oyster Partnership,132919
South Ribble Council,http://statistics.data.gov.uk/doc/local-authority/30UN,Planning,Agency Fees,1121,Agency Worker NAME REDACTED - Enforcement,03/01/2020,0000451686,"3,746.25",Revenue,The Oyster Partnership,132919
South Ribble Council,http://statistics.data.gov.uk/doc/local-authority/30UN,Planning,Agency Fees,1121,Agency Worker NAME REDACTED - Enforcement,03/01/2020,0000451687,"1,665.00",Revenue,The Oyster Partnership,132919
South Ribble Council,http://statistics.data.gov.uk/doc/local-authority/30UN,HR & Communications,Training Expense-Course Fees,1408,6 SESSIONS OF THERAPY FOR NAME REDACTED,24/01/2020,0000452397,600.00,Revenue,THE THERAPY COMPANY,131955
South Ribble Council,http://statistics.data.gov.uk/doc/local-authority/30UN,Legal,Publications,4142,Annual Subscription Renewal Rowell Practical Food Manual 2020,08/01/2020,0000452026,521.00,Revenue,THOMSON REUTERS,00034979
South Ribble Council,http://statistics.data.gov.uk/doc/local-authority/30UN,Legal,Publications,4142,Annual Subscription Renewal Rowell Practical Food Manual 2020,08/01/2020,0000452026,521.00,Revenue,THOMSON REUTERS,00034979
South Ribble Council,http://statistics.data.gov.uk/doc/local-authority/30UN,Property Services,Energy Costs,2303,1/11/19 to 30/11/19,10/01/2020,0000451966,802.45,Revenue,Total Gas & power Ltd,132995
South Ribble Council,http://statistics.data.gov.uk/doc/local-authority/30UN,Property Services,Energy Costs,2307,CCL,10/01/2020,0000451966,39.09,Revenue,Total Gas & power Ltd,132995
South Ribble Council,http://statistics.data.gov.uk/doc/local-authority/30UN,Property Services,Energy Costs,2303,1/12/19 to 31/12/19,22/01/2020,0000452313,"4,134.61",Revenue,Total Gas & power Ltd,132995
South Ribble Council,http://statistics.data.gov.uk/doc/local-authority/30UN,Property Services,Energy Costs,2307,CCL,22/01/2020,0000452313,231.89,Revenue,Total Gas & power Ltd,132995
South Ribble Council,http://statistics.data.gov.uk/doc/local-authority/30UN,Property Services,Energy Costs,2303,1/12/19 to 31/12/19,22/01/2020,0000452314,"2,634.99",Revenue,Total Gas & power Ltd,132995
South Ribble Council,http://statistics.data.gov.uk/doc/local-authority/30UN,Property Services,Energy Costs,2307,CLL,22/01/2020,0000452314,154.38,Revenue,Total Gas & power Ltd,132995
South Ribble Council,http://statistics.data.gov.uk/doc/local-authority/30UN,Property Services,Energy Costs,2303,1/12/19 to 31/12/19,22/01/2020,0000452361,"1,392.25",Revenue,Total Gas & power Ltd,132995
South Ribble Council,http://statistics.data.gov.uk/doc/local-authority/30UN,Property Services,Energy Costs,2307,CCL,22/01/2020,0000452361,69.25,Revenue,Total Gas & power Ltd,132995
South Ribble Council,http://statistics.data.gov.uk/doc/local-authority/30UN,Property Services,Energy Costs,2303,1/11/19 to 30/11/19,24/01/2020,0000452362,"1,426.27",Revenue,Total Gas & power Ltd,132995
South Ribble Council,http://statistics.data.gov.uk/doc/local-authority/30UN,Property Services,Energy Costs,2307,CCL,24/01/2020,0000452362,70.96,Revenue,Total Gas & power Ltd,132995
South Ribble Council,http://statistics.data.gov.uk/doc/local-authority/30UN,Property Services,Energy Costs,2303,1/12/19 to 31/12/19,24/01/2020,0000452363,782.87,Revenue,Total Gas & power Ltd,132995
South Ribble Council,http://statistics.data.gov.uk/doc/local-authority/30UN,Property Services,Energy Costs,2307,CCL,24/01/2020,0000452363,37.88,Revenue,Total Gas & power Ltd,132995
South Ribble Council,http://statistics.data.gov.uk/doc/local-authority/30UN,Property Services,Energy Costs,2303,1/10/19 to 31/10/19,24/01/2020,0000452364,769.93,Revenue,Total Gas & power Ltd,132995
South Ribble Council,http://statistics.data.gov.uk/doc/local-authority/30UN,Property Services,Energy Costs,2307,CCL,24/01/2020,0000452364,37.21,Revenue,Total Gas & power Ltd,132995
South Ribble Council,http://statistics.data.gov.uk/doc/local-authority/30UN,Property Services,Energy Costs,2304,28/11/19 to 31/12/19,24/01/2020,0000452365,"2,036.24",Revenue,Total Gas & power Ltd,132995
South Ribble Council,http://statistics.data.gov.uk/doc/local-authority/30UN,Property Services,Energy Costs,2307,CCL,24/01/2020,0000452365,203.71,Revenue,Total Gas & power Ltd,132995
South Ribble Council,http://statistics.data.gov.uk/doc/local-authority/30UN,Property Services,Energy Costs,2304,31/10/19 to 28/11/19,24/01/2020,0000452366,"1,970.59",Revenue,Total Gas & power Ltd,132995
South Ribble Council,http://statistics.data.gov.uk/doc/local-authority/30UN,Property Services,Energy Costs,2307,CCL,24/01/2020,0000452366,198.73,Revenue,Total Gas & power Ltd,132995
South Ribble Council,http://statistics.data.gov.uk/doc/local-authority/30UN,Property Services,Energy Costs,2304,23/10/19 to 31/10/19,24/01/2020,0000452367,686.48,Revenue,Total Gas & power Ltd,132995
South Ribble Council,http://statistics.data.gov.uk/doc/local-authority/30UN,Property Services,Energy Costs,2307,CCL,24/01/2020,0000452367,69.94,Revenue,Total Gas & power Ltd,132995
South Ribble Council,http://statistics.data.gov.uk/doc/local-authority/30UN,Housing,Cap Expend Other,C750,"SUPPLY AND INSTALL UPVC DOUBLE GLAZING AS PER TENDER SPECIFICATION FOR 2019 /20 COST 50,000.00",22/01/2020,0000452325,650.00,Revenue,TRADE WINDOWS & CONSERVATORIES,00119823
South Ribble Council,http://statistics.data.gov.uk/doc/local-authority/30UN,Housing,Cap Expend Other,C750,"SUPPLY AND INSTALL UPVC DOUBLE GLAZING AS PER TENDER SPECIFICATION FOR 2019 /20 COST 50,000.00",22/01/2020,0000452326,"1,344.00",Revenue,TRADE WINDOWS & CONSERVATORIES,00119823
South Ribble Council,http://statistics.data.gov.uk/doc/local-authority/30UN,Neighbourhood Admin & Support,External Contractors Charges,4570,ANNUAL ODYSSEY LICENCE RENEWAL FUEL SYSTEM - MOSS SIDE DEPOT 3.3.20 - 2.3.21,29/01/2020,0000452216,"1,379.15",Revenue,TRISCAN SYSTEMS LIMITED,00108339
South Ribble Council,http://statistics.data.gov.uk/doc/local-authority/30UN,Property Services,Rep & Maint Premises,2020,"Attend Civic Centre and collect the scanning documents  Monday 11/11/2019 as per instruction of NAME REDACTED, TELEPHONE REDACTED",08/01/2020,0000452025,"2,465.00",Revenue,UK DOCUMENT IMAGING,00111999
South Ribble Council,http://statistics.data.gov.uk/doc/local-authority/30UN,Development Enterprise & Comm Mgnt,Other Misc,4851,"Leyland Christmas Festival 2019 stage  1 StackedPA Package, Large PA System placed on PA Wings 1.1m - Mixing Desk and Playback rack.",29/01/2020,0000452479,"4,640.00",Revenue,UK Media Events Ltd,132263
South Ribble Council,http://statistics.data.gov.uk/doc/local-authority/30UN,Regeneration,Operational Furniture & Equip,4010,"Staging for Banqueting suite  20x frames, Wheelchair access ramps guard rails and chair stops Storage shuttle extra accessories",17/01/2020,0000452264,"4,056.00",Revenue,Unistage,132929
South Ribble Council,http://statistics.data.gov.uk/doc/local-authority/30UN,Healthy Communities,Provisions,4311,Please supply Products for Old and New coffee machines as per previous order no PUR0041896  dated 21st Nov 2019,08/01/2020,0000451908,264.70,Revenue,VENDING ENTERPRISES,00101501
South Ribble Council,http://statistics.data.gov.uk/doc/local-authority/30UN,Property Services,Operational Furniture & Equip,4012,2019 / 2020 annual contract for the monthly rental of hot drinks machines at the civic centre including environmental charge.,10/01/2020,0000451967,408.31,Revenue,VENDING ENTERPRISES,00101501
South Ribble Council,http://statistics.data.gov.uk/doc/local-authority/30UN,Property Services,Operational Furniture & Equip,4010,Please supply 6 cold water dispensers as per NAME REDACTED  instruction,29/01/2020,0000452065,"1,630.00",Revenue,VENDING ENTERPRISES,00101501
South Ribble Council,http://statistics.data.gov.uk/doc/local-authority/30UN,Property Services,Rep & Maint Premises,2020,Sanitisation and Filter changes for the six new plumbed in water coolers installed 26/11/2019. 1/12/2019 to 31/3/2020. will cover inv number 1776,22/01/2020,0000452066,259.98,Revenue,VENDING ENTERPRISES,00101501
South Ribble Council,http://statistics.data.gov.uk/doc/local-authority/30UN,Property Services,Professional Fees,4510,Surveyor consultancy for the period end 22nd March 2020,29/01/2020,0000452445,"1,837.99",Revenue,Vivid Resourcing,132999
South Ribble Council,http://statistics.data.gov.uk/doc/local-authority/30UN,Property Services,Professional Fees,4510,Surveyor consultancy for the period end 22nd March 2020,29/01/2020,0000452474,"1,302.42",Revenue,Vivid Resourcing,132999
South Ribble Council,http://statistics.data.gov.uk/doc/local-authority/30UN,Property Services,Professional Fees,4510,Surveyor consultancy for the period end 22nd March 2020,29/01/2020,0000452475,"1,118.67",Revenue,Vivid Resourcing,132999
South Ribble Council,http://statistics.data.gov.uk/doc/local-authority/30UN,Property Services,Professional Fees,4510,Surveyor consultancy for the period end 22nd March 2020,29/01/2020,0000452476,"1,894.83",Revenue,Vivid Resourcing,132999
South Ribble Council,http://statistics.data.gov.uk/doc/local-authority/30UN,Property Services,Professional Fees,4510,Surveyor consultancy for the period end 22nd March 2020,29/01/2020,0000452477,"1,890.42",Revenue,Vivid Resourcing,132999
South Ribble Council,http://statistics.data.gov.uk/doc/local-authority/30UN,Property Services,Professional Fees,4510,Surveyor consultancy for the period end 22nd March 2020,29/01/2020,0000452478,"1,923.74",Revenue,Vivid Resourcing,132999
South Ribble Council,http://statistics.data.gov.uk/doc/local-authority/30UN,Information Services,Peripherals,4269,21 Dec 2019,08/01/2020,0000452008,641.67,Revenue,VODAFONE RE:CABLE & WIRELESS UK,130810
South Ribble Council,http://statistics.data.gov.uk/doc/local-authority/30UN,Information Services,Peripherals,4247,01 Jan 2020,08/01/2020,0000452011,"2,404.20",Revenue,VODAFONE RE:CABLE & WIRELESS UK,130810
South Ribble Council,http://statistics.data.gov.uk/doc/local-authority/30UN,Democratic Services,Other Misc,4421,Use of the venue for the Parliamentary Election on 12 December 2019.  ,31/01/2020,0000452473,300.00,Revenue,WALTON LE DALE COMMUNITY CENTRE,131464
South Ribble Council,http://statistics.data.gov.uk/doc/local-authority/30UN,Shared Financial Services,Water Charges,2511,water supply,08/01/2020,0000451716,350.64,Revenue,WATER PLUS,00029845
South Ribble Council,http://statistics.data.gov.uk/doc/local-authority/30UN,Shared Financial Services,Water Charges,2511,trade effluent,08/01/2020,0000451716,101.75,Revenue,WATER PLUS,00029845
South Ribble Council,http://statistics.data.gov.uk/doc/local-authority/30UN,Shared Financial Services,Water Charges,2511,used water,08/01/2020,0000451716,"2,206.13",Revenue,WATER PLUS,00029845
South Ribble Council,http://statistics.data.gov.uk/doc/local-authority/30UN,Property Services,Water Charges,2511,water supply,15/01/2020,0000452089,356.22,Revenue,WATER PLUS,00029845
South Ribble Council,http://statistics.data.gov.uk/doc/local-authority/30UN,Property Services,Water Charges,2511,trade effluent,15/01/2020,0000452089,108.04,Revenue,WATER PLUS,00029845
South Ribble Council,http://statistics.data.gov.uk/doc/local-authority/30UN,Property Services,Water Charges,2511,used water,15/01/2020,0000452089,"2,134.97",Revenue,WATER PLUS,00029845
South Ribble Council,http://statistics.data.gov.uk/doc/local-authority/30UN,Property Services,Water Charges,2511,water supp,24/01/2020,0000452407,369.61,Revenue,WATER PLUS,00029845
South Ribble Council,http://statistics.data.gov.uk/doc/local-authority/30UN,Property Services,Water Charges,2511,trade effluent,24/01/2020,0000452407,112.61,Revenue,WATER PLUS,00029845
South Ribble Council,http://statistics.data.gov.uk/doc/local-authority/30UN,Property Services,Water Charges,2511,used,24/01/2020,0000452407,"2,206.13",Revenue,WATER PLUS,00029845
South Ribble Council,http://statistics.data.gov.uk/doc/local-authority/30UN,Legal,Legal,4821,"PROFESSIONAL SERVICES WITH REGARD TO ADDRESS REDACTED - PROPOSED CPO
",08/01/2020,0000451846,"4,705.00",Revenue,WEIGHTMANS LLP,00120867
South Ribble Council,http://statistics.data.gov.uk/doc/local-authority/30UN,Legal,Legal,4821,PROFESSIONAL SERVICES WITH REGARD TO ADDRESS REDACTED - PROPOSED CPO,17/01/2020,0000452151,"10,025.00",Revenue,WEIGHTMANS LLP,00120867
South Ribble Council,http://statistics.data.gov.uk/doc/local-authority/30UN,Regeneration,Capital Expenditure,C230,Please carry out works to - Stump Grinding Shruggs Wood as per NAME REDACTED,22/01/2020,0000452312,650.00,Revenue,WESTFIELD TREE SERVICES LTD,00114226
South Ribble Council,http://statistics.data.gov.uk/doc/local-authority/30UN,Revenues Plus,Postage,4291,Revenues Jan 2020 to March 2020,29/01/2020,0000452448,250.70,Revenue,WHISTL  UK LTD,131310
South Ribble Council,http://statistics.data.gov.uk/doc/local-authority/30UN,Planning,Professional Fees,4510,Project work in relation to Bee Lane/Pickerings Farm as per NAME REDACTED and NAME REDACTED,03/01/2020,0000451896,"2,450.00",Revenue,WSP UK Ltd,132833
South Ribble Council,http://statistics.data.gov.uk/doc/local-authority/30UN,Information Services,Peripherals,4247,Quarterly charges for various printers and usage meter charges,10/01/2020,0000452111,266.22,Revenue,XERETEC OFFICE SYSTEMS LTD,00109325
South Ribble Council,http://statistics.data.gov.uk/doc/local-authority/30UN,Shared Assurance Services,Employee Related Insurance,1800,SRBC - Engineering Insurance and Inspection 2020,29/01/2020,0000452322,"3,039.48",Revenue,Zurich Municipal Insurance plc,132190
